Workbook

Sheet SkillConfig
A1: ID | B1: PieceID | C1: power | D1: name | E1: dec | H1: attribute | I1: icon | J1: scriptName | K1: IDGroup | L1: timelineName | M1: cd | N1: SkillType | O1: level | P1: effectValue | Q1: intensifierIndex | R1: addPropertyType | S1: addPropertyValue | T1: PromoteLan | U1: PromoteLanPara | V1: PromoteLanPara
A2: int | B2: int | C2: float | D2: int | E2: int | H2: int | I2: string | J2: string | K2: int | L2: string | M2: float | N2: int | O2: int | P2: float[] | Q2: int[] | R2: int[] | S2: float[] | T2: int | U2: float[] | V2: float[]
AG3: =SUMIFS(AG5:AG9999,$A5:$A9999,"<>"&"",$O5:$O9999,6) -> 229 | AH3: =SUMIFS(AH5:AH9999,$A5:$A9999,"<>"&"",$O5:$O9999,6) -> 204 | AI3: 209 | AJ3: 10 | AK3: 10 | AL3: 20 | AM3: 20 | AN3: 10
A4: 技能ID IDGroup+技能等级 901开头是法宝技能 | B4: 对应的碎片ID | C4: 功法强度 基于标准强度的百分比 50=50% | D4: 名称语言表ID | E4: 描述语言表ID | F4: 技能名称 | G4: 技能效果 | H4: 技能属性 1=金 2=水 4=木 8=火 16=土 | I4: 图标 | J4: 脚本名称 | K4: 技能组 | L4: 技能的timeline表现，没得就不填，这个可以程序填 | M4: 功法：多少圈释放1次 法宝：CD多少秒 | N4: 技能类型: 1=主动功法 2=被动功法 3=法宝技能 4=大道 | O4: 星级 | P4: 效果值 | Q4: 允许被加强的效果下表 | R4: 属性ID表内对应 101=生命百分比 102=攻击百分比 103=防御百分比 106~110=金木水火土灵根 | S4: 具体效果值 | T4: 升星简短描述 | U4: 升星简短描述参数 | V4: 哪边的法宝被影响 0=无 1=前方 -1=后方 | W4: 数值1 | X4: 数值2 | Y4: 数值3 | Z4: 数值4 | AA4: 数值5 | AB4: 数值6 | AC4: 数值7 | AD4: 升星描述 | AG4: 101 | AH4: 102 | AI4: 103 | AJ4: 106 | AK4: 107 | AL4: 108 | AM4: 109 | AN4: 110
B5: 英雄-主动功法区域
A6: =K6*10+O6-1 -> 11010 | B6: 13001 | C6: 100 | D6: 316 | E6: 739 | F6: 太虚幻剑经 | G6: 身体周围幻化出{0}柄细剑，每柄细剑对敌人造成{1}%伤害，并有{2}几率对敌人造成1层流血。 | H6: 1 | I6: =CONCATENATE("icon_s",K6) -> icon_s1101 | J6: =CONCATENATE("S",K6) -> S1101 | K6: 1101 | L6: 1101_timeline_TD | M6: 1 | N6: 1 | O6: 1 | P6: =_xlfn.TEXTJOIN(";",1,W6:AC6) -> 6;60;15 | Q6: 2 | R6: =_xlfn.TEXTJOIN(";",1,IF(AG6="","",101),IF(AH6="","",102),IF(AI6="","",103),IF(AJ6="","",106),IF(AK6="","",107),IF(AL6="","",108),IF(AM6="","",109),IF(AN6="","",110)) ->  | S6: =_xlfn.TEXTJOIN(";",1,AG6:AN6) ->  | T6: -1 | W6: 6 | X6: 60 | Y6: 15 | AE6: =IF(F6="","",CONCATENATE(F6,"·",CHOOSE(O6,"壹","贰","叁","肆","伍","陆"))) -> 太虚幻剑经·壹
A7: =K7*10+O7-1 -> 11011 | B7: 13001 | C7: 150 | D7: 317 | E7: 740 | F7: 太虚幻剑经 | G7: 身体周围幻化出{0}柄细剑，每柄细剑对敌人造成{1}%伤害，并有{2}几率对敌人造成1层流血。 | H7: 1 | I7: icon_s1101 | J7: =CONCATENATE("S",K7) -> S1101 | K7: 1101 | L7: 1101_timeline_TD | M7: 1 | N7: 1 | O7: 2 | P7: =_xlfn.TEXTJOIN(";",1,W7:AC7) -> 8;60;15 | Q7: 2 | R7: =_xlfn.TEXTJOIN(";",1,IF(AG7="","",101),IF(AH7="","",102),IF(AI7="","",103),IF(AJ7="","",106),IF(AK7="","",107),IF(AL7="","",108),IF(AM7="","",109),IF(AN7="","",110)) ->  | S7: =_xlfn.TEXTJOIN(";",1,AG7:AN7) ->  | T7: 1100 | U7: 2 | W7: 8 | X7: 60 | Y7: 15 | AD7: =CONCATENATE("飞剑数量+",U7) -> 飞剑数量+2 | AE7: =IF(F7="","",CONCATENATE(F7,"·",CHOOSE(O7,"壹","贰","叁","肆","伍","陆"))) -> 太虚幻剑经·贰
A8: 11012 | B8: 13001 | C8: 225 | D8: 318 | E8: 741 | F8: 太虚幻剑经 | G8: 身体周围幻化出{0}柄细剑，每柄细剑对敌人造成{1}%伤害，并有{2}几率对敌人造成1层流血。 | H8: 1 | I8: icon_s1101 | J8: S1101 | K8: 1101 | L8: 1101_timeline_TD | M8: 1 | N8: 1 | O8: 3 | P8: 8;60;15 | Q8: 2 | R8: 101 | S8: 10 | T8: 1101 | W8: 8 | X8: 60 | Y8: 15 | AD8: =CONCATENATE("生命+",S8,"%") -> 生命+10% | AE8: 太虚幻剑经·叁 | AG8: 10
A9: 11013 | B9: 13001 | C9: 337.5 | D9: 319 | E9: 742 | F9: 太虚幻剑经 | G9: 身体周围幻化出{0}柄细剑，每柄细剑对敌人造成{1}%伤害，并有{2}几率对敌人造成1层流血。 如果敌人有减益状态，则虚剑伤害提升{3}%。 | H9: 1 | I9: icon_s1101 | J9: S1101 | K9: 1101 | L9: 1101_timeline_TD | M9: 1 | N9: 1 | O9: 4 | P9: 9;60;15;20 | Q9: 2 | R9: 101 | S9: 10 | T9: 1102 | U9: 1 | W9: 9 | X9: 60 | Y9: 15 | Z9: 20 | AD9: =CONCATENATE("飞剑数量+",U9,"，对带减益的敌人增伤") -> 飞剑数量+1，对带减益的敌人增伤 | AE9: 太虚幻剑经·肆 | AG9: 10
A10: 11014 | B10: 13001 | C10: 506.25 | D10: 320 | E10: 743 | F10: 太虚幻剑经 | G10: 身体周围幻化出{0}柄细剑，每柄细剑对敌人造成{1}%伤害，并有{2}几率对敌人造成1层流血。 如果敌人有减益状态，则虚剑伤害提升{3}%。 | H10: 1 | I10: icon_s1101 | J10: S1101 | K10: 1101 | L10: 1101_timeline_TD | M10: 1 | N10: 1 | O10: 5 | P10: 9;60;15;20 | Q10: 2 | R10: 101 | S10: 20 | T10: 1103 | W10: 9 | X10: 60 | Y10: 15 | Z10: 20 | AD10: =CONCATENATE("生命+",S10,"%") -> 生命+20% | AE10: 太虚幻剑经·伍 | AG10: 20
A11: 11015 | B11: 13001 | C11: 759.375 | D11: 321 | E11: 744 | F11: 太虚幻剑经 | G11: 身体周围幻化出{0}柄更大体型的虚剑，每柄虚剑对敌人造成{1}%伤害，并有{2}几率对敌人造成1层流血。 如果敌人有减益状态，则虚剑伤害提升{3}%。 | H11: 1 | I11: icon_s1101 | J11: S1101 | K11: 1101 | L11: 1101_timeline_TD | M11: 1 | N11: 1 | O11: 6 | P11: 9;80;15;20 | Q11: 2 | R11: 101 | S11: 20 | T11: 1104 | W11: 9 | X11: 80 | Y11: 15 | Z11: 20 | AD11: 发射伤害更高的幻剑 | AE11: 太虚幻剑经·陆 | AG11: 20
A13: =K13*10+O13-1 -> 11020 | B13: =B6+1 -> 13002 | C13: 100 | D13: 322 | E13: 745 | F13: 天罡剑气诀 | G13: 吸收自身灵气凝聚{0}柄大剑，大剑旋转快速穿透敌人对敌人照成{1}%伤害 | H13: 1 | I13: =CONCATENATE("icon_s",K13) -> icon_s1102 | J13: =CONCATENATE("S",K13) -> S1102 | K13: =K6+1 -> 1102 | L13: 1102_timeline_TD | M13: 1 | N13: 1 | O13: 1 | P13: =_xlfn.TEXTJOIN(";",1,W13:AC13) -> 6;90 | Q13: 2 | R13: =_xlfn.TEXTJOIN(";",1,IF(AG13="","",101),IF(AH13="","",102),IF(AI13="","",103),IF(AJ13="","",106),IF(AK13="","",107),IF(AL13="","",108),IF(AM13="","",109),IF(AN13="","",110)) ->  | S13: =_xlfn.TEXTJOIN(";",1,AG13:AN13) ->  | T13: -1 | W13: 6 | X13: 90 | AE13: 天罡剑气诀·壹
A14: =K14*10+O14-1 -> 11021 | B14: =B7+1 -> 13002 | C14: 150 | D14: 323 | E14: 746 | F14: 天罡剑气诀 | G14: 吸收自身灵气凝聚{0}柄大剑，大剑旋转快速穿透敌人对敌人照成{1}%伤害 敌人如果在流血或放血状态，对敌人造成的伤害+{2}% | H14: 1 | I14: =CONCATENATE("icon_s",K14) -> icon_s1102 | J14: =CONCATENATE("S",K14) -> S1102 | K14: =K7+1 -> 1102 | L14: 1102_timeline_TD | M14: 1 | N14: 1 | O14: 2 | P14: =_xlfn.TEXTJOIN(";",1,W14:AC14) -> 6;90;15 | Q14: 2 | R14: =_xlfn.TEXTJOIN(";",1,IF(AG14="","",101),IF(AH14="","",102),IF(AI14="","",103),IF(AJ14="","",106),IF(AK14="","",107),IF(AL14="","",108),IF(AM14="","",109),IF(AN14="","",110)) ->  | S14: =_xlfn.TEXTJOIN(";",1,AG14:AN14) ->  | T14: 1105 | U14: 2 | W14: 6 | X14: 90 | Y14: 15 | AD14: 对流血或放血敌人增伤 | AE14: 天罡剑气诀·贰
A15: 11022 | B15: 13002 | C15: 225 | D15: 324 | E15: 747 | F15: 天罡剑气诀 | G15: 吸收自身灵气凝聚{0}柄大剑，大剑旋转快速穿透敌人对敌人照成{1}%伤害 敌人如果在流血或放血状态，对敌人造成的伤害+{2}% | H15: 1 | I15: icon_s1102 | J15: S1102 | K15: 1102 | L15: 1102_timeline_TD | M15: 1 | N15: 1 | O15: 3 | P15: 6;90;15 | Q15: 2 | R15: 102 | S15: 10 | T15: 1106 | W15: 6 | X15: 90 | Y15: 15 | AD15: =CONCATENATE("生命+",S15,"%") -> 生命+10% | AE15: 天罡剑气诀·叁 | AH15: 10
A16: 11023 | B16: 13002 | C16: 337.5 | D16: 325 | E16: 748 | F16: 天罡剑气诀 | G16: 吸收自身灵气凝聚{0}柄大剑，大剑旋转快速穿透敌人对敌人照成{1}%伤害 敌人如果在流血或放血状态，对敌人造成的伤害+{2}% 重伤敌人后，如果目标没在放血状态，直接放血且不消耗流血层数 | H16: 1 | I16: icon_s1102 | J16: S1102 | K16: 1102 | L16: 1102_timeline_TD | M16: 1 | N16: 1 | O16: 4 | P16: 6;90;15 | Q16: 2 | R16: 102 | S16: 10 | T16: 1107 | U16: 1 | W16: 6 | X16: 90 | Y16: 15 | AD16: 无条件放血 | AE16: 天罡剑气诀·肆 | AH16: 10
A17: 11024 | B17: 13002 | C17: 506.25 | D17: 326 | E17: 749 | F17: 天罡剑气诀 | G17: 吸收自身灵气凝聚{0}柄大剑，大剑旋转快速穿透敌人对敌人照成{1}%伤害 敌人如果在流血或放血状态，对敌人造成的伤害+{2}% 重伤敌人后，如果目标没在放血状态，直接放血且不消耗流血层数 | H17: 1 | I17: icon_s1102 | J17: S1102 | K17: 1102 | L17: 1102_timeline_TD | M17: 1 | N17: 1 | O17: 5 | P17: 6;90;15 | Q17: 2 | R17: 102 | S17: 20 | T17: 1108 | W17: 6 | X17: 90 | Y17: 15 | AD17: =CONCATENATE("生命+",S17,"%") -> 生命+20% | AE17: 天罡剑气诀·伍 | AH17: 20
A18: 11025 | B18: 13002 | C18: 759.375 | D18: 327 | E18: 750 | F18: 天罡剑气诀 | G18: 吸收自身灵气凝聚{0}柄大剑，大剑旋转快速穿透敌人对敌人照成{1}%伤害 敌人如果在流血或放血状态，对敌人造成的伤害+{2}% 重伤敌人后，如果目标没在放血状态，直接放血且不消耗流血层数 全盛状态，剑的体型变大，对拼强度+{3}%，伤害提升{4}% | H18: 1 | I18: icon_s1102 | J18: S1102 | K18: 1102 | L18: 1102_timeline_TD | M18: 1 | N18: 1 | O18: 6 | P18: 6;90;15;100;30 | Q18: 2 | R18: 102 | S18: 20 | T18: 1109 | W18: 6 | X18: 90 | Y18: 15 | Z18: 100 | AA18: 30 | AD18: 对拼强度和伤害提升 | AE18: 天罡剑气诀·陆 | AH18: 20
A20: =K20*10+O20-1 -> 11030 | B20: =B13+1 -> 13003 | C20: 100 | D20: 328 | E20: 751 | F20: 血刃金煌功 | G20: 向前方挥动{0}次，每次挥动形成一道血刃刀气，对敌人{1}造成伤害，并有{2}%概率对敌人造成流血。 | H20: 1 | I20: =CONCATENATE("icon_s",K20) -> icon_s1103 | J20: =CONCATENATE("S",K20) -> S1103 | K20: =K13+1 -> 1103 | L20: 1103_timeline_TD | M20: 1 | N20: 1 | O20: 1 | P20: =_xlfn.TEXTJOIN(";",1,W20:AC20) -> 6;60;15 | Q20: 2 | R20: =_xlfn.TEXTJOIN(";",1,IF(AG20="","",101),IF(AH20="","",102),IF(AI20="","",103),IF(AJ20="","",106),IF(AK20="","",107),IF(AL20="","",108),IF(AM20="","",109),IF(AN20="","",110)) ->  | S20: =_xlfn.TEXTJOIN(";",1,AG20:AN20) ->  | T20: -1 | W20: 6 | X20: 60 | Y20: 15 | AE20: 血刃金煌功·壹
A21: =K21*10+O21-1 -> 11031 | B21: =B14+1 -> 13003 | C21: 150 | D21: 329 | E21: 752 | F21: 血刃金煌功 | G21: 向前方挥动{0}次，每次挥动形成一道血刃刀气，对敌人{1}造成伤害，并有{2}%概率对敌人造成流血。 刀气命中目标后，恢复本次伤害{3}%的生命。 | H21: 1 | I21: icon_s1103 | J21: =CONCATENATE("S",K21) -> S1103 | K21: =K14+1 -> 1103 | L21: 1103_timeline_TD | M21: 1 | N21: 1 | O21: 2 | P21: =_xlfn.TEXTJOIN(";",1,W21:AC21) -> 6;60;15;20 | Q21: 2 | R21: =_xlfn.TEXTJOIN(";",1,IF(AG21="","",101),IF(AH21="","",102),IF(AI21="","",103),IF(AJ21="","",106),IF(AK21="","",107),IF(AL21="","",108),IF(AM21="","",109),IF(AN21="","",110)) ->  | S21: =_xlfn.TEXTJOIN(";",1,AG21:AN21) ->  | T21: 1110 | W21: 6 | X21: 60 | Y21: 15 | Z21: 20 | AD21: 刀气命中回血 | AE21: 血刃金煌功·贰
A22: 11032 | B22: 13003 | C22: 225 | D22: 330 | E22: 753 | F22: 血刃金煌功 | G22: 向前方挥动{0}次，每次挥动形成一道血刃刀气，对敌人{1}造成伤害，并有{2}%概率对敌人造成流血。 刀气命中目标后，恢复本次伤害{3}%的生命。 | H22: 1 | I22: icon_s1103 | J22: S1103 | K22: 1103 | L22: 1103_timeline_TD | M22: 1 | N22: 1 | O22: 3 | P22: 6;60;15;20 | Q22: 2 | R22: 103 | S22: 10 | T22: 1111 | W22: 6 | X22: 60 | Y22: 15 | Z22: 20 | AD22: =CONCATENATE("攻击+",S22,"%") -> 攻击+10% | AE22: 血刃金煌功·叁 | AI22: 10
A23: 11033 | B23: 13003 | C23: 337.5 | D23: 331 | E23: 754 | F23: 血刃金煌功 | G23: 向前方挥动{0}次，每次挥动形成一道血刃刀气，对敌人{1}造成伤害，并有{2}%概率对敌人造成流血。 刀气命中目标后，恢复本次伤害{3}%的生命。 | H23: 1 | I23: icon_s1103 | J23: S1103 | K23: 1103 | L23: 1103_timeline_TD | M23: 1 | N23: 1 | O23: 4 | P23: 8;60;15;20 | Q23: 2 | R23: 103 | S23: 10 | T23: 1112 | U23: 2 | W23: 8 | X23: 60 | Y23: 15 | Z23: 20 | AD23: =CONCATENATE("刀气+",U23) -> 刀气+2 | AE23: 血刃金煌功·肆 | AI23: 10
A24: 11034 | B24: 13003 | C24: 506.25 | D24: 332 | E24: 755 | F24: 血刃金煌功 | G24: 向前方挥动{0}次，每次挥动形成一道血刃刀气，对敌人{1}造成伤害，并有{2}%概率对敌人造成流血。 刀气命中目标后，恢复本次伤害{3}%的生命。 | H24: 1 | I24: icon_s1103 | J24: S1103 | K24: 1103 | L24: 1103_timeline_TD | M24: 1 | N24: 1 | O24: 5 | P24: 8;60;15;20 | Q24: 2 | R24: 103 | S24: 20 | T24: 1113 | W24: 8 | X24: 60 | Y24: 15 | Z24: 20 | AD24: =CONCATENATE("攻击+",S24,"%") -> 攻击+20% | AE24: 血刃金煌功·伍 | AI24: 20
A25: 11035 | B25: 13003 | C25: 759.375 | D25: 333 | E25: 756 | F25: 血刃金煌功 | G25: 向前方挥动{0}次，每次挥动形成一道血刃刀气，对敌人{1}造成伤害，并有{2}%概率对敌人造成流血。 刀气命中目标后，恢复本次伤害{3}%的生命。 刀气对流血的敌人额外造成{4}%伤害，且再施加1层流血。 | H25: 1 | I25: icon_s1103 | J25: S1103 | K25: 1103 | L25: 1103_timeline_TD | M25: 1 | N25: 1 | O25: 6 | P25: 8;60;15;20;20 | Q25: 2 | R25: 103 | S25: 20 | T25: 1114 | W25: 8 | X25: 60 | Y25: 15 | Z25: 20 | AA25: 20 | AD25: 对流血目标增伤，再次放血 | AE25: 血刃金煌功·陆 | AI25: 20
A27: =K27*10+O27-1 -> 11040 | B27: =B20+1 -> 13004 | C27: 100 | D27: 334 | E27: 757 | F27: 飞刃 | G27: 发射{0}枚飞刀，对敌人造成{1}%伤害。 | H27: 1 | I27: =CONCATENATE("icon_s",K27) -> icon_s1104 | J27: =CONCATENATE("S",K27) -> S1104 | K27: =K20+1 -> 1104 | L27: 1104_timeline_TD | M27: 1 | N27: 1 | O27: 1 | P27: =_xlfn.TEXTJOIN(";",1,W27:AC27) -> 6;60 | Q27: 2 | R27: =_xlfn.TEXTJOIN(";",1,IF(AG27="","",101),IF(AH27="","",102),IF(AI27="","",103),IF(AJ27="","",106),IF(AK27="","",107),IF(AL27="","",108),IF(AM27="","",109),IF(AN27="","",110)) ->  | S27: =_xlfn.TEXTJOIN(";",1,AG27:AN27) ->  | T27: -1 | W27: 6 | X27: 60 | AE27: 飞刃·壹
A28: =K28*10+O28-1 -> 11041 | B28: =B21+1 -> 13004 | C28: 150 | D28: 335 | E28: 758 | F28: 飞刃 | G28: 发射{0}枚飞刀，对敌人造成{1}%伤害。 | H28: 1 | I28: icon_s1104 | J28: =CONCATENATE("S",K28) -> S1104 | K28: =K21+1 -> 1104 | L28: 1104_timeline_TD | M28: 1 | N28: 1 | O28: 2 | P28: =_xlfn.TEXTJOIN(";",1,W28:AC28) -> 6;60 | Q28: 2 | R28: =_xlfn.TEXTJOIN(";",1,IF(AG28="","",101),IF(AH28="","",102),IF(AI28="","",103),IF(AJ28="","",106),IF(AK28="","",107),IF(AL28="","",108),IF(AM28="","",109),IF(AN28="","",110)) -> 101;102;103 | S28: =_xlfn.TEXTJOIN(";",1,AG28:AN28) -> 2;2;2 | T28: 1115 | W28: 6 | X28: 60 | AD28: =CONCATENATE("生命、攻击、防御+",S28,"%") -> 生命、攻击、防御+2;2;2% | AE28: 飞刃·贰 | AG28: 2 | AH28: 2 | AI28: 2
A29: 11042 | B29: 13004 | C29: 225 | D29: 336 | E29: 759 | F29: 飞刃 | G29: 发射{0}枚飞刀，对敌人造成{1}%伤害。 | H29: 1 | I29: icon_s1104 | J29: S1104 | K29: 1104 | L29: 1104_timeline_TD | M29: 1 | N29: 1 | O29: 3 | P29: 8;60 | Q29: 2 | R29: 101;102;103 | S29: 2;2;2 | T29: 1116 | U29: 2 | W29: 8 | X29: 60 | AD29: =CONCATENATE("飞刀数量+",U29) -> 飞刀数量+2 | AE29: 飞刃·叁 | AG29: 2 | AH29: 2 | AI29: 2
A30: 11043 | B30: 13004 | C30: 337.5 | D30: 337 | E30: 760 | F30: 飞刃 | G30: 发射{0}枚飞刀，对敌人造成{1}%伤害。 | H30: 1 | I30: icon_s1104 | J30: S1104 | K30: 1104 | L30: 1104_timeline_TD | M30: 1 | N30: 1 | O30: 4 | P30: 8;60 | Q30: 2 | R30: 101;102;103 | S30: 4;4;4 | T30: 1117 | W30: 8 | X30: 60 | AD30: =CONCATENATE("生命、攻击、防御+",S30,"%") -> 生命、攻击、防御+4;4;4% | AE30: 飞刃·肆 | AG30: 4 | AH30: 4 | AI30: 4
A31: 11044 | B31: 13004 | C31: 506.25 | D31: 338 | E31: 761 | F31: 飞刃 | G31: 发射{0}枚飞刀，对敌人造成{1}%伤害。 | H31: 1 | I31: icon_s1104 | J31: S1104 | K31: 1104 | L31: 1104_timeline_TD | M31: 1 | N31: 1 | O31: 5 | P31: 10;60 | Q31: 2 | R31: 101;102;103 | S31: 4;4;4 | T31: 1118 | U31: 2 | W31: 10 | X31: 60 | AD31: =CONCATENATE("飞刀数量+",U31) -> 飞刀数量+2 | AE31: 飞刃·伍 | AG31: 4 | AH31: 4 | AI31: 4
A32: 11045 | B32: 13004 | C32: 759.375 | D32: 339 | E32: 762 | F32: 飞刃 | G32: 发射{0}枚飞刀，对敌人造成{1}%伤害。 | H32: 1 | I32: icon_s1104 | J32: S1104 | K32: 1104 | L32: 1104_timeline_TD | M32: 1 | N32: 1 | O32: 6 | P32: 10;60 | Q32: 2 | R32: 101;102;103 | S32: 6;6;6 | T32: 1119 | W32: 10 | X32: 60 | AD32: 生命、攻击、防御+6;6;6% | AE32: 飞刃·陆 | AG32: 6 | AH32: 6 | AI32: 6
A34: =K34*10+O34-1 -> 11050 | B34: =B27+1 -> 13005 | C34: 100 | D34: 340 | E34: 763 | F34: 金针 | G34: 手中快速发射{0}%枚金针，对敌人造成{1}%伤害，并有{2}%概率施加1层流血。 | H34: 1 | I34: =CONCATENATE("icon_s",K34) -> icon_s1105 | J34: =CONCATENATE("S",K34) -> S1105 | K34: =K27+1 -> 1105 | L34: 1105_timeline_TD | M34: 1 | N34: 1 | O34: 1 | P34: =_xlfn.TEXTJOIN(";",1,W34:AC34) -> 3;120;30 | Q34: 2 | R34: =_xlfn.TEXTJOIN(";",1,IF(AG34="","",101),IF(AH34="","",102),IF(AI34="","",103),IF(AJ34="","",106),IF(AK34="","",107),IF(AL34="","",108),IF(AM34="","",109),IF(AN34="","",110)) ->  | S34: =_xlfn.TEXTJOIN(";",1,AG34:AN34) ->  | T34: -1 | W34: 3 | X34: 120 | Y34: 30 | AE34: 金针·壹
A35: =K35*10+O35-1 -> 11051 | B35: =B28+1 -> 13005 | C35: 150 | D35: 341 | E35: 764 | F35: 金针 | G35: 手中快速发射{0}%枚金针，对敌人造成{1}%伤害，并有{2}%概率施加1层流血。 | H35: 1 | I35: icon_s1105 | J35: =CONCATENATE("S",K35) -> S1105 | K35: =K28+1 -> 1105 | L35: 1105_timeline_TD | M35: 1 | N35: 1 | O35: 2 | P35: =_xlfn.TEXTJOIN(";",1,W35:AC35) -> 3;120;30 | Q35: 2 | R35: =_xlfn.TEXTJOIN(";",1,IF(AG35="","",101),IF(AH35="","",102),IF(AI35="","",103),IF(AJ35="","",106),IF(AK35="","",107),IF(AL35="","",108),IF(AM35="","",109),IF(AN35="","",110)) -> 101;102;103 | S35: =_xlfn.TEXTJOIN(";",1,AG35:AN35) -> 2;2;2 | T35: 1120 | W35: 3 | X35: 120 | Y35: 30 | AD35: =CONCATENATE("生命、攻击、防御+",S35,"%") -> 生命、攻击、防御+2;2;2% | AE35: 金针·贰 | AG35: 2 | AH35: 2 | AI35: 2
A36: 11052 | B36: 13005 | C36: 225 | D36: 342 | E36: 765 | F36: 金针 | G36: 手中快速发射{0}%枚金针，对敌人造成{1}%伤害，并有{2}%概率施加1层流血。 | H36: 1 | I36: icon_s1105 | J36: S1105 | K36: 1105 | L36: 1105_timeline_TD | M36: 1 | N36: 1 | O36: 3 | P36: 4;120;30 | Q36: 2 | R36: 101;102;103 | S36: 2;2;2 | T36: 1121 | U36: 1 | W36: 4 | X36: 120 | Y36: 30 | AD36: =CONCATENATE("金针数量+",U36) -> 金针数量+1 | AE36: 金针·叁 | AG36: 2 | AH36: 2 | AI36: 2
A37: 11053 | B37: 13005 | C37: 337.5 | D37: 343 | E37: 766 | F37: 金针 | G37: 手中快速发射{0}%枚金针，对敌人造成{1}%伤害，并有{2}%概率施加1层流血。 | H37: 1 | I37: icon_s1105 | J37: S1105 | K37: 1105 | L37: 1105_timeline_TD | M37: 1 | N37: 1 | O37: 4 | P37: 4;120;30 | Q37: 2 | R37: 101;102;103 | S37: 4;4;4 | T37: 1122 | W37: 4 | X37: 120 | Y37: 30 | AD37: =CONCATENATE("生命、攻击、防御+",S37,"%") -> 生命、攻击、防御+4;4;4% | AE37: 金针·肆 | AG37: 4 | AH37: 4 | AI37: 4
A38: 11054 | B38: 13005 | C38: 506.25 | D38: 344 | E38: 767 | F38: 金针 | G38: 手中快速发射{0}%枚金针，对敌人造成{1}%伤害，并有{2}%概率施加1层流血。 | H38: 1 | I38: icon_s1105 | J38: S1105 | K38: 1105 | L38: 1105_timeline_TD | M38: 1 | N38: 1 | O38: 5 | P38: 5;120;30 | Q38: 2 | R38: 101;102;103 | S38: 4;4;4 | T38: 1123 | U38: 1 | W38: 5 | X38: 120 | Y38: 30 | AD38: =CONCATENATE("金针数量+",U38) -> 金针数量+1 | AE38: 金针·伍 | AG38: 4 | AH38: 4 | AI38: 4
A39: 11055 | B39: 13005 | C39: 759.375 | D39: 345 | E39: 768 | F39: 金针 | G39: 手中快速发射{0}%枚金针，对敌人造成{1}%伤害，并有{2}%概率施加1层流血。 | H39: 1 | I39: icon_s1105 | J39: S1105 | K39: 1105 | L39: 1105_timeline_TD | M39: 1 | N39: 1 | O39: 6 | P39: 5;120;30 | Q39: 2 | R39: 101;102;103 | S39: 6;6;6 | T39: 1124 | W39: 5 | X39: 120 | Y39: 30 | AD39: =CONCATENATE("生命、攻击、防御+",S39,"%") -> 生命、攻击、防御+6;6;6% | AE39: 金针·陆 | AG39: 6 | AH39: 6 | AI39: 6
A41: =K41*10+O41-1 -> 12010 | B41: =B34+1 -> 13006 | C41: 100 | D41: 346 | E41: 769 | F41: 碧落幽冥劲 | G41: 发出{0}道寒气冰锥，对敌人照成{1}%伤害，每到冰锥有{2}%概率对敌人施加1层寒气 | H41: 2 | I41: =CONCATENATE("icon_s",K41) -> icon_s1201 | J41: =CONCATENATE("S",K41) -> S1201 | K41: 1201 | L41: 1201_timeline_TD | M41: 1 | N41: 1 | O41: 1 | P41: =_xlfn.TEXTJOIN(";",1,W41:AC41) -> 3;120;30 | Q41: 2 | R41: =_xlfn.TEXTJOIN(";",1,IF(AG41="","",101),IF(AH41="","",102),IF(AI41="","",103),IF(AJ41="","",106),IF(AK41="","",107),IF(AL41="","",108),IF(AM41="","",109),IF(AN41="","",110)) ->  | S41: =_xlfn.TEXTJOIN(";",1,AG41:AN41) ->  | T41: -1 | W41: 3 | X41: 120 | Y41: 30 | AE41: 碧落幽冥劲·壹
A42: =K42*10+O42-1 -> 12011 | B42: =B35+1 -> 13006 | C42: 150 | D42: 347 | E42: 770 | F42: 碧落幽冥劲 | G42: 发出{0}道寒气冰锥，对敌人照成{1}%伤害，每到冰锥有{2}%概率对敌人施加1层寒气 | H42: 2 | I42: icon_s1201 | J42: =CONCATENATE("S",K42) -> S1201 | K42: 1201 | L42: 1201_timeline_TD | M42: 1 | N42: 1 | O42: 2 | P42: =_xlfn.TEXTJOIN(";",1,W42:AC42) -> 4;120;30 | Q42: 2 | R42: =_xlfn.TEXTJOIN(";",1,IF(AG42="","",101),IF(AH42="","",102),IF(AI42="","",103),IF(AJ42="","",106),IF(AK42="","",107),IF(AL42="","",108),IF(AM42="","",109),IF(AN42="","",110)) ->  | S42: =_xlfn.TEXTJOIN(";",1,AG42:AN42) ->  | T42: 1125 | U42: 1 | W42: 4 | X42: 120 | Y42: 30 | AD42: =CONCATENATE("冰锥数量+",U42) -> 冰锥数量+1 | AE42: 碧落幽冥劲·贰
A43: 12012 | B43: 13006 | C43: 225 | D43: 348 | E43: 771 | F43: 碧落幽冥劲 | G43: 发出{0}道寒气冰锥，对敌人照成{1}%伤害，每到冰锥有{2}%概率对敌人施加1层寒气 | H43: 2 | I43: icon_s1201 | J43: S1201 | K43: 1201 | L43: 1201_timeline_TD | M43: 1 | N43: 1 | O43: 3 | P43: 4;120;30 | Q43: 2 | R43: 101 | S43: 10 | T43: 1126 | W43: 4 | X43: 120 | Y43: 30 | AD43: =CONCATENATE("生命+",S43,"%") -> 生命+10% | AE43: 碧落幽冥劲·叁 | AG43: 10
A44: 12013 | B44: 13006 | C44: 337.5 | D44: 349 | E44: 772 | F44: 碧落幽冥劲 | G44: 发出{0}道寒气冰锥，对敌人照成{1}%伤害，每到冰锥有{2}%概率对敌人施加1层寒气 | H44: 2 | I44: icon_s1201 | J44: S1201 | K44: 1201 | L44: 1201_timeline_TD | M44: 1 | N44: 1 | O44: 4 | P44: 5;120;30 | Q44: 2 | R44: 101 | S44: 10 | T44: 1127 | U44: 1 | W44: 5 | X44: 120 | Y44: 30 | AD44: =CONCATENATE("冰锥数量+",U44) -> 冰锥数量+1 | AE44: 碧落幽冥劲·肆 | AG44: 10
A45: 12014 | B45: 13006 | C45: 506.25 | D45: 350 | E45: 773 | F45: 碧落幽冥劲 | G45: 发出{0}道寒气冰锥，对敌人照成{1}%伤害，每到冰锥有{2}%概率对敌人施加1层寒气 | H45: 2 | I45: icon_s1201 | J45: S1201 | K45: 1201 | L45: 1201_timeline_TD | M45: 1 | N45: 1 | O45: 5 | P45: 5;120;30 | Q45: 2 | R45: 101 | S45: 20 | T45: 1128 | W45: 5 | X45: 120 | Y45: 30 | AD45: =CONCATENATE("生命+",S45,"%") -> 生命+20% | AE45: 碧落幽冥劲·伍 | AG45: 20
A46: 12015 | B46: 13006 | C46: 759.375 | D46: 351 | E46: 774 | F46: 碧落幽冥劲 | G46: 发出{0}道寒气冰锥，对敌人照成{1}%伤害，每到冰锥有{2}%概率对敌人施加1层寒气 | H46: 2 | I46: icon_s1201 | J46: S1201 | K46: 1201 | L46: 1201_timeline_TD | M46: 1 | N46: 1 | O46: 6 | P46: 6;120;30 | Q46: 2 | R46: 101 | S46: 20 | T46: 1129 | U46: 1 | W46: 6 | X46: 120 | Y46: 30 | AD46: =CONCATENATE("冰锥数量+",U46) -> 冰锥数量+1 | AE46: 碧落幽冥劲·陆 | AG46: 20
A48: =K48*10+O48-1 -> 12020 | B48: =B41+1 -> 13007 | C48: 100 | D48: 352 | E48: 775 | F48: 雾隐千流法 | G48: 身体散发出一团迷雾。从迷雾中飞出{0}个冰球，每个冰球对敌人照成{1}%伤害，并有{2}%概率施加1层寒气 | H48: 2 | I48: =CONCATENATE("icon_s",K48) -> icon_s1202 | J48: =CONCATENATE("S",K48) -> S1202 | K48: =K41+1 -> 1202 | L48: 1202_timeline_TD | M48: 1 | N48: 1 | O48: 1 | P48: =_xlfn.TEXTJOIN(";",1,W48:AC48) -> 3;120;30 | Q48: 2 | R48: =_xlfn.TEXTJOIN(";",1,IF(AG48="","",101),IF(AH48="","",102),IF(AI48="","",103),IF(AJ48="","",106),IF(AK48="","",107),IF(AL48="","",108),IF(AM48="","",109),IF(AN48="","",110)) ->  | S48: =_xlfn.TEXTJOIN(";",1,AG48:AN48) ->  | T48: -1 | W48: 3 | X48: 120 | Y48: 30 | AE48: 雾隐千流法·壹
A49: =K49*10+O49-1 -> 12021 | B49: =B42+1 -> 13007 | C49: 150 | D49: 353 | E49: 776 | F49: 雾隐千流法 | G49: 身体散发出一团迷雾。从迷雾中飞出{0}个冰球，每个冰球对敌人照成{1}%伤害，并有{2}%概率施加1层寒气 | H49: 2 | I49: icon_s1202 | J49: =CONCATENATE("S",K49) -> S1202 | K49: =K42+1 -> 1202 | L49: 1202_timeline_TD | M49: 1 | N49: 1 | O49: 2 | P49: =_xlfn.TEXTJOIN(";",1,W49:AC49) -> 4;120;30 | Q49: 2 | R49: =_xlfn.TEXTJOIN(";",1,IF(AG49="","",101),IF(AH49="","",102),IF(AI49="","",103),IF(AJ49="","",106),IF(AK49="","",107),IF(AL49="","",108),IF(AM49="","",109),IF(AN49="","",110)) ->  | S49: =_xlfn.TEXTJOIN(";",1,AG49:AN49) ->  | T49: 1130 | U49: 1 | W49: 4 | X49: 120 | Y49: 30 | AD49: =CONCATENATE("冰球数量+",U49) -> 冰球数量+1 | AE49: 雾隐千流法·贰
A50: 12022 | B50: 13007 | C50: 225 | D50: 354 | E50: 777 | F50: 雾隐千流法 | G50: 身体散发出一团迷雾。从迷雾中飞出{0}个冰球，每个冰球对敌人照成{1}%伤害，并有{2}%概率施加1层寒气 | H50: 2 | I50: icon_s1202 | J50: S1202 | K50: 1202 | L50: 1202_timeline_TD | M50: 1 | N50: 1 | O50: 3 | P50: 4;120;30 | Q50: 2 | R50: 103 | S50: 10 | T50: 1131 | W50: 4 | X50: 120 | Y50: 30 | AD50: =CONCATENATE("攻击+",S50,"%") -> 攻击+10% | AE50: 雾隐千流法·叁 | AI50: 10
A51: 12023 | B51: 13007 | C51: 337.5 | D51: 355 | E51: 778 | F51: 雾隐千流法 | G51: 身体散发出一团迷雾。从迷雾中飞出{0}个冰球，每个冰球对敌人照成{1}%伤害，并有{2}%概率施加1层寒气 | H51: 2 | I51: icon_s1202 | J51: S1202 | K51: 1202 | L51: 1202_timeline_TD | M51: 1 | N51: 1 | O51: 4 | P51: 5;120;30 | Q51: 2 | R51: 103 | S51: 10 | T51: 1132 | U51: 1 | W51: 5 | X51: 120 | Y51: 30 | AD51: =CONCATENATE("冰球数量+",U51) -> 冰球数量+1 | AE51: 雾隐千流法·肆 | AI51: 10
A52: 12024 | B52: 13007 | C52: 506.25 | D52: 356 | E52: 779 | F52: 雾隐千流法 | G52: 身体散发出一团迷雾。从迷雾中飞出{0}个冰球，每个冰球对敌人照成{1}%伤害，并有{2}%概率施加1层寒气 | H52: 2 | I52: icon_s1202 | J52: S1202 | K52: 1202 | L52: 1202_timeline_TD | M52: 1 | N52: 1 | O52: 5 | P52: 5;120;30 | Q52: 2 | R52: 103 | S52: 20 | T52: 1133 | W52: 5 | X52: 120 | Y52: 30 | AD52: =CONCATENATE("攻击+",S52,"%") -> 攻击+20% | AE52: 雾隐千流法·伍 | AI52: 20
A53: 12025 | B53: 13007 | C53: 759.375 | D53: 357 | E53: 780 | F53: 雾隐千流法 | G53: 身体散发出一团迷雾。从迷雾中飞出{0}个冰球，每个冰球对敌人照成{1}%伤害，并有{2}%概率施加1层寒气 | H53: 2 | I53: icon_s1202 | J53: S1202 | K53: 1202 | L53: 1202_timeline_TD | M53: 1 | N53: 1 | O53: 6 | P53: 6;120;30 | Q53: 2 | R53: 103 | S53: 20 | T53: 1134 | U53: 1 | W53: 6 | X53: 120 | Y53: 30 | AD53: =CONCATENATE("冰球数量+",U53) -> 冰球数量+1 | AE53: 雾隐千流法·陆 | AI53: 20
B55: =B48+1 -> 13008 | C55: 100 | D55: 358 | E55: 781 | G55: 占位 | H55: 2 | I55: =CONCATENATE("icon_s",K55) -> icon_s1203 | J55: =CONCATENATE("S",K55) -> S1203 | K55: =K48+1 -> 1203 | L55: bingqiu_timeline_TD | M55: 1 | N55: 1 | O55: 1 | P55: =_xlfn.TEXTJOIN(";",1,W55:AC55) -> 3;120;30 | Q55: 2 | R55: =_xlfn.TEXTJOIN(";",1,IF(AG55="","",101),IF(AH55="","",102),IF(AI55="","",103),IF(AJ55="","",106),IF(AK55="","",107),IF(AL55="","",108),IF(AM55="","",109),IF(AN55="","",110)) ->  | S55: =_xlfn.TEXTJOIN(";",1,AG55:AN55) ->  | T55: -1 | W55: 3 | X55: 120 | Y55: 30 | AE55: =IF(F55="","",CONCATENATE(F55,"·",CHOOSE(O55,"壹","贰","叁","肆","伍","陆"))) -> 
B56: =B49+1 -> 13008 | C56: 150 | D56: 359 | E56: 782 | G56: 占位 | H56: 2 | I56: icon_s1203 | J56: =CONCATENATE("S",K56) -> S1203 | K56: =K49+1 -> 1203 | L56: bingqiu_timeline_TD | M56: 1 | N56: 1 | O56: 2 | P56: =_xlfn.TEXTJOIN(";",1,W56:AC56) -> 4;120;30 | Q56: 2 | R56: =_xlfn.TEXTJOIN(";",1,IF(AG56="","",101),IF(AH56="","",102),IF(AI56="","",103),IF(AJ56="","",106),IF(AK56="","",107),IF(AL56="","",108),IF(AM56="","",109),IF(AN56="","",110)) -> 102 | S56: =_xlfn.TEXTJOIN(";",1,AG56:AN56) -> 10 | T56: 1135 | U56: 1 | W56: 4 | X56: 120 | Y56: 30 | AD56: =CONCATENATE("冰球数量+",U56) -> 冰球数量+1 | AH56: 10
B57: 13008 | C57: 225 | D57: 360 | E57: 783 | G57: 占位 | H57: 2 | I57: icon_s1203 | J57: S1203 | K57: 1203 | L57: bingqiu_timeline_TD | M57: 1 | N57: 1 | O57: 3 | P57: 4;120;30 | Q57: 2 | R57: 102 | S57: 10 | T57: 1136 | W57: 4 | X57: 120 | Y57: 30 | AD57: =CONCATENATE("攻击+",S57,"%") -> 攻击+10% | AH57: 10
B58: 13008 | C58: 337.5 | D58: 361 | E58: 784 | G58: 占位 | H58: 2 | I58: icon_s1203 | J58: S1203 | K58: 1203 | L58: bingqiu_timeline_TD | M58: 1 | N58: 1 | O58: 4 | P58: 5;120;30 | Q58: 2 | R58: 102 | S58: 20 | T58: 1137 | U58: 1 | W58: 5 | X58: 120 | Y58: 30 | AD58: =CONCATENATE("冰球数量+",U58) -> 冰球数量+1 | AH58: 20
B59: 13008 | C59: 506.25 | D59: 362 | E59: 785 | G59: 占位 | H59: 2 | I59: icon_s1203 | J59: S1203 | K59: 1203 | L59: bingqiu_timeline_TD | M59: 1 | N59: 1 | O59: 5 | P59: 5;120;30 | Q59: 2 | R59: 102 | S59: 20 | T59: 1138 | W59: 5 | X59: 120 | Y59: 30 | AD59: =CONCATENATE("攻击+",S59,"%") -> 攻击+20% | AH59: 20
B60: 13008 | C60: 759.375 | D60: 363 | E60: 786 | G60: 占位 | H60: 2 | I60: icon_s1203 | J60: S1203 | K60: 1203 | L60: bingqiu_timeline_TD | M60: 1 | N60: 1 | O60: 6 | P60: 6;120;30 | Q60: 2 | T60: 1139 | U60: 1 | W60: 6 | X60: 120 | Y60: 30 | AD60: =CONCATENATE("冰球数量+",U60) -> 冰球数量+1
I61: =CONCATENATE("icon_s",K61) -> icon_s
A62: =K62*10+O62-1 -> 12040 | B62: =B55+1 -> 13009 | C62: 100 | D62: 358 | E62: 781 | F62: 水球 | G62: 发射{0}枚水波，对敌人造成{1}%伤害。 | H62: 2 | I62: icon_s1204 | J62: =CONCATENATE("S",K62) -> S1204 | K62: 1204 | L62: 1204_timeline_TD | M62: 1 | N62: 1 | O62: 1 | P62: =_xlfn.TEXTJOIN(";",1,W62:AC62) -> 6;60 | Q62: 2 | R62: =_xlfn.TEXTJOIN(";",1,IF(AG62="","",101),IF(AH62="","",102),IF(AI62="","",103),IF(AJ62="","",106),IF(AK62="","",107),IF(AL62="","",108),IF(AM62="","",109),IF(AN62="","",110)) ->  | S62: =_xlfn.TEXTJOIN(";",1,AG62:AN62) ->  | T62: -1 | W62: 6 | X62: 60 | AE62: 水球·壹
A63: =K63*10+O63-1 -> 12041 | B63: =B56+1 -> 13009 | C63: 150 | D63: 359 | E63: 782 | F63: 水球 | G63: 发射{0}枚水波，对敌人造成{1}%伤害。 | H63: 2 | I63: icon_s1204 | J63: =CONCATENATE("S",K63) -> S1204 | K63: 1204 | L63: 1204_timeline_TD | M63: 1 | N63: 1 | O63: 2 | P63: =_xlfn.TEXTJOIN(";",1,W63:AC63) -> 6;60 | Q63: 2 | R63: =_xlfn.TEXTJOIN(";",1,IF(AG63="","",101),IF(AH63="","",102),IF(AI63="","",103),IF(AJ63="","",106),IF(AK63="","",107),IF(AL63="","",108),IF(AM63="","",109),IF(AN63="","",110)) -> 101;102;103 | S63: =_xlfn.TEXTJOIN(";",1,AG63:AN63) -> 2;2;2 | T63: 1140 | W63: 6 | X63: 60 | AD63: =CONCATENATE("生命、攻击、防御+",S63,"%") -> 生命、攻击、防御+2;2;2% | AE63: 水球·贰 | AG63: 2 | AH63: 2 | AI63: 2
A64: 12042 | B64: 13009 | C64: 225 | D64: 360 | E64: 783 | F64: 水球 | G64: 发射{0}枚水波，对敌人造成{1}%伤害。 | H64: 2 | I64: icon_s1204 | J64: S1204 | K64: 1204 | L64: 1204_timeline_TD | M64: 1 | N64: 1 | O64: 3 | P64: 8;60 | Q64: 2 | R64: 101;102;103 | S64: 2;2;2 | T64: 1141 | U64: 2 | W64: 8 | X64: 60 | AD64: =CONCATENATE("水波数量+",U64) -> 水波数量+2 | AE64: 水球·叁 | AG64: 2 | AH64: 2 | AI64: 2
A65: 12043 | B65: 13009 | C65: 337.5 | D65: 361 | E65: 784 | F65: 水球 | G65: 发射{0}枚水波，对敌人造成{1}%伤害。 | H65: 2 | I65: icon_s1204 | J65: S1204 | K65: 1204 | L65: 1204_timeline_TD | M65: 1 | N65: 1 | O65: 4 | P65: 8;60 | Q65: 2 | R65: 101;102;103 | S65: 4;4;4 | T65: 1142 | W65: 8 | X65: 60 | AD65: =CONCATENATE("生命、攻击、防御+",S65,"%") -> 生命、攻击、防御+4;4;4% | AE65: 水球·肆 | AG65: 4 | AH65: 4 | AI65: 4
A66: 12044 | B66: 13009 | C66: 506.25 | D66: 362 | E66: 785 | F66: 水球 | G66: 发射{0}枚水波，对敌人造成{1}%伤害。 | H66: 2 | I66: icon_s1204 | J66: S1204 | K66: 1204 | L66: 1204_timeline_TD | M66: 1 | N66: 1 | O66: 5 | P66: 10;60 | Q66: 2 | R66: 101;102;103 | S66: 4;4;4 | T66: 1143 | U66: 2 | W66: 10 | X66: 60 | AD66: =CONCATENATE("水波数量+",U66) -> 水波数量+2 | AE66: 水球·伍 | AG66: 4 | AH66: 4 | AI66: 4
A67: 12045 | B67: 13009 | C67: 759.375 | D67: 363 | E67: 786 | F67: 水球 | G67: 发射{0}枚水波，对敌人造成{1}%伤害。 | H67: 2 | I67: =CONCATENATE("icon_s",K67) -> icon_s1204 | J67: S1204 | K67: 1204 | L67: 1204_timeline_TD | M67: 1 | N67: 1 | O67: 6 | P67: 10;60 | Q67: 2 | R67: 101;102;103 | S67: 6;6;6 | T67: 1144 | W67: 10 | X67: 60 | AD67: =CONCATENATE("生命、攻击、防御+",S67,"%") -> 生命、攻击、防御+6;6;6% | AE67: 水球·陆 | AG67: 6 | AH67: 6 | AI67: 6
I68: icon_s
A69: =K69*10+O69-1 -> 12050 | B69: =B62+1 -> 13010 | C69: 100 | D69: 364 | E69: 787 | F69: 冰刀 | G69: 发射{0}枚冰刀，对敌人造成{1}%伤害。 | H69: 2 | I69: icon_s1205 | J69: =CONCATENATE("S",K69) -> S1205 | K69: 1205 | L69: 1205_timeline_TD | M69: 1 | N69: 1 | O69: 1 | P69: =_xlfn.TEXTJOIN(";",1,W69:AC69) -> 6;60 | Q69: 2 | R69: =_xlfn.TEXTJOIN(";",1,IF(AG69="","",101),IF(AH69="","",102),IF(AI69="","",103),IF(AJ69="","",106),IF(AK69="","",107),IF(AL69="","",108),IF(AM69="","",109),IF(AN69="","",110)) ->  | S69: =_xlfn.TEXTJOIN(";",1,AG69:AN69) ->  | T69: -1 | W69: 6 | X69: 60 | AE69: 冰刀·壹
A70: =K70*10+O70-1 -> 12051 | B70: =B63+1 -> 13010 | C70: 150 | D70: 365 | E70: 788 | F70: 冰刀 | G70: 发射{0}枚冰刀，对敌人造成{1}%伤害。 | H70: 2 | I70: icon_s1205 | J70: =CONCATENATE("S",K70) -> S1205 | K70: 1205 | L70: 1205_timeline_TD | M70: 1 | N70: 1 | O70: 2 | P70: =_xlfn.TEXTJOIN(";",1,W70:AC70) -> 6;60 | Q70: 2 | R70: =_xlfn.TEXTJOIN(";",1,IF(AG70="","",101),IF(AH70="","",102),IF(AI70="","",103),IF(AJ70="","",106),IF(AK70="","",107),IF(AL70="","",108),IF(AM70="","",109),IF(AN70="","",110)) -> 101;102;103 | S70: =_xlfn.TEXTJOIN(";",1,AG70:AN70) -> 2;2;2 | T70: 1145 | W70: 6 | X70: 60 | AD70: =CONCATENATE("生命、攻击、防御+",S70,"%") -> 生命、攻击、防御+2;2;2% | AE70: 冰刀·贰 | AG70: 2 | AH70: 2 | AI70: 2
A71: 12052 | B71: 13010 | C71: 225 | D71: 366 | E71: 789 | F71: 冰刀 | G71: 发射{0}枚冰刀，对敌人造成{1}%伤害。 | H71: 2 | I71: icon_s1205 | J71: S1205 | K71: 1205 | L71: 1205_timeline_TD | M71: 1 | N71: 1 | O71: 3 | P71: 8;60 | Q71: 2 | R71: 101;102;103 | S71: 2;2;2 | T71: 1146 | U71: 2 | W71: 8 | X71: 60 | AD71: =CONCATENATE("冰刀数量+",U71) -> 冰刀数量+2 | AE71: 冰刀·叁 | AG71: 2 | AH71: 2 | AI71: 2
A72: 12053 | B72: 13010 | C72: 337.5 | D72: 367 | E72: 790 | F72: 冰刀 | G72: 发射{0}枚冰刀，对敌人造成{1}%伤害。 | H72: 2 | I72: icon_s1205 | J72: S1205 | K72: 1205 | L72: 1205_timeline_TD | M72: 1 | N72: 1 | O72: 4 | P72: 8;60 | Q72: 2 | R72: 101;102;103 | S72: 4;4;4 | T72: 1147 | W72: 8 | X72: 60 | AD72: =CONCATENATE("生命、攻击、防御+",S72,"%") -> 生命、攻击、防御+4;4;4% | AE72: 冰刀·肆 | AG72: 4 | AH72: 4 | AI72: 4
A73: 12054 | B73: 13010 | C73: 506.25 | D73: 368 | E73: 791 | F73: 冰刀 | G73: 发射{0}枚冰刀，对敌人造成{1}%伤害。 | H73: 2 | I73: icon_s1205 | J73: S1205 | K73: 1205 | L73: 1205_timeline_TD | M73: 1 | N73: 1 | O73: 5 | P73: 10;60 | Q73: 2 | R73: 101;102;103 | S73: 4;4;4 | T73: 1148 | U73: 2 | W73: 10 | X73: 60 | AD73: =CONCATENATE("冰刀数量+",U73) -> 冰刀数量+2 | AE73: 冰刀·伍 | AG73: 4 | AH73: 4 | AI73: 4
A74: 12055 | B74: 13010 | C74: 759.375 | D74: 369 | E74: 792 | F74: 冰刀 | G74: 发射{0}枚冰刀，对敌人造成{1}%伤害。 | H74: 2 | I74: icon_s1205 | J74: S1205 | K74: 1205 | L74: 1205_timeline_TD | M74: 1 | N74: 1 | O74: 6 | P74: 10;60 | Q74: 2 | R74: 101;102;103 | S74: 6;6;6 | T74: 1149 | W74: 10 | X74: 60 | AD74: =CONCATENATE("生命、攻击、防御+",S74,"%") -> 生命、攻击、防御+6;6;6% | AE74: 冰刀·陆 | AG74: 6 | AH74: 6 | AI74: 6
I75: icon_s
A76: =K76*10+O76-1 -> 13010 | B76: =B69+1 -> 13011 | C76: 100 | D76: 370 | E76: 793 | F76: 瘴影千丝术 | G76: 发出{0}条细细的毒针，每颗针对敌人照成{1}%金系伤害，每颗针有{2}%概率施加1层毒 | H76: 4 | I76: icon_s1301 | J76: =CONCATENATE("S",K76) -> S1301 | K76: 1301 | L76: 1301_timeline_TD | M76: 1 | N76: 1 | O76: 1 | P76: =_xlfn.TEXTJOIN(";",1,W76:AC76) -> 3;120;30 | Q76: 2 | R76: =_xlfn.TEXTJOIN(";",1,IF(AG76="","",101),IF(AH76="","",102),IF(AI76="","",103),IF(AJ76="","",106),IF(AK76="","",107),IF(AL76="","",108),IF(AM76="","",109),IF(AN76="","",110)) ->  | S76: =_xlfn.TEXTJOIN(";",1,AG76:AN76) ->  | T76: -1 | W76: 3 | X76: 120 | Y76: 30 | AE76: 瘴影千丝术·壹
A77: =K77*10+O77-1 -> 13011 | B77: =B70+1 -> 13011 | C77: 150 | D77: 371 | E77: 794 | F77: 瘴影千丝术 | G77: 发出{0}条细细的毒针，每颗针对敌人照成{1}%金系伤害，每颗针有{2}%概率施加1层毒 | H77: 4 | I77: icon_s1301 | J77: =CONCATENATE("S",K77) -> S1301 | K77: 1301 | L77: 1301_timeline_TD | M77: 1 | N77: 1 | O77: 2 | P77: =_xlfn.TEXTJOIN(";",1,W77:AC77) -> 4;120;30 | Q77: 2 | R77: =_xlfn.TEXTJOIN(";",1,IF(AG77="","",101),IF(AH77="","",102),IF(AI77="","",103),IF(AJ77="","",106),IF(AK77="","",107),IF(AL77="","",108),IF(AM77="","",109),IF(AN77="","",110)) ->  | S77: =_xlfn.TEXTJOIN(";",1,AG77:AN77) ->  | T77: 1150 | U77: 1 | W77: 4 | X77: 120 | Y77: 30 | AD77: =CONCATENATE("毒针数量+",U77) -> 毒针数量+1 | AE77: 瘴影千丝术·贰
A78: 13012 | B78: 13011 | C78: 225 | D78: 372 | E78: 795 | F78: 瘴影千丝术 | G78: 发出{0}条细细的毒针，每颗针对敌人照成{1}%金系伤害，每颗针有{2}%概率施加1层毒 | H78: 4 | I78: icon_s1301 | J78: S1301 | K78: 1301 | L78: 1301_timeline_TD | M78: 1 | N78: 1 | O78: 3 | P78: 4;120;30 | Q78: 2 | R78: 101 | S78: 10 | T78: 1151 | W78: 4 | X78: 120 | Y78: 30 | AD78: =CONCATENATE("生命+",S78,"%") -> 生命+10% | AE78: =IF(F78="","",CONCATENATE(F78,"·",CHOOSE(O78,"壹","贰","叁","肆","伍","陆"))) -> 瘴影千丝术·叁 | AG78: 10
A79: 13013 | B79: 13011 | C79: 337.5 | D79: 373 | E79: 796 | F79: 瘴影千丝术 | G79: 发出{0}条细细的毒针，每颗针对敌人照成{1}%金系伤害，每颗针有{2}%概率施加1层毒 | H79: 4 | I79: icon_s1301 | J79: S1301 | K79: 1301 | L79: 1301_timeline_TD | M79: 1 | N79: 1 | O79: 4 | P79: 5;120;30 | Q79: 2 | R79: 101 | S79: 10 | T79: 1152 | U79: 1 | W79: 5 | X79: 120 | Y79: 30 | AD79: =CONCATENATE("毒针数量+",U79) -> 毒针数量+1 | AE79: 瘴影千丝术·肆 | AG79: 10
A80: 13014 | B80: 13011 | C80: 506.25 | D80: 374 | E80: 797 | F80: 瘴影千丝术 | G80: 发出{0}条细细的毒针，每颗针对敌人照成{1}%金系伤害，每颗针有{2}%概率施加1层毒 | H80: 4 | I80: icon_s1301 | J80: S1301 | K80: 1301 | L80: 1301_timeline_TD | M80: 1 | N80: 1 | O80: 5 | P80: 5;120;30 | Q80: 2 | R80: 101 | S80: 20 | T80: 1153 | W80: 5 | X80: 120 | Y80: 30 | AD80: =CONCATENATE("生命+",S80,"%") -> 生命+20% | AE80: 瘴影千丝术·伍 | AG80: 20
A81: 13015 | B81: 13011 | C81: 759.375 | D81: 375 | E81: 798 | F81: 瘴影千丝术 | G81: 发出{0}条细细的毒针，每颗针对敌人照成{1}%金系伤害，每颗针有{2}%概率施加1层毒 | H81: 4 | I81: icon_s1301 | J81: S1301 | K81: 1301 | L81: 1301_timeline_TD | M81: 1 | N81: 1 | O81: 6 | P81: 6;120;30 | Q81: 2 | R81: 101 | S81: 20 | T81: 1154 | U81: 1 | W81: 6 | X81: 120 | Y81: 30 | AD81: =CONCATENATE("毒针数量+",U81) -> 毒针数量+1 | AE81: 瘴影千丝术·陆 | AG81: 20
I82: icon_s
A83: =K83*10+O83-1 -> 13020 | B83: =B76+1 -> 13012 | C83: 100 | D83: 376 | E83: 799 | F83: 蚀骨腐血掌 | G83: 快手释放{0}掌，对敌人造成{1}%伤害，并有{2}%几率对敌人施加1层毒，如果敌人毒超过{3}层，则每层毒对敌人的伤害提升{4}%，并有{5}%几率施加一层噬魂。 | H83: 4 | I83: icon_s1302 | J83: =CONCATENATE("S",K83) -> S1302 | K83: 1302 | L83: 1302_timeline_TD | M83: 1 | N83: 1 | O83: 1 | P83: =_xlfn.TEXTJOIN(";",1,W83:AC83) -> 3;90;45;5;6;100 | Q83: 2 | R83: =_xlfn.TEXTJOIN(";",1,IF(AG83="","",101),IF(AH83="","",102),IF(AI83="","",103),IF(AJ83="","",106),IF(AK83="","",107),IF(AL83="","",108),IF(AM83="","",109),IF(AN83="","",110)) ->  | S83: =_xlfn.TEXTJOIN(";",1,AG83:AN83) ->  | T83: -1 | W83: 3 | X83: 90 | Y83: 45 | Z83: 5 | AA83: 6 | AB83: 100 | AE83: 蚀骨腐血掌·壹
A84: =K84*10+O84-1 -> 13021 | B84: =B77+1 -> 13012 | C84: 150 | D84: 377 | E84: 800 | F84: 蚀骨腐血掌 | G84: 快手释放{0}掌，对敌人造成{1}%伤害，并有{2}%几率对敌人施加1层毒，如果敌人毒超过{3}层，则每层毒对敌人的伤害提升{4}%，并有{5}%几率施加一层噬魂。 | H84: 4 | I84: icon_s1302 | J84: =CONCATENATE("S",K84) -> S1302 | K84: 1302 | L84: 1302_timeline_TD | M84: 1 | N84: 1 | O84: 2 | P84: =_xlfn.TEXTJOIN(";",1,W84:AC84) -> 4;90;45;5;6;100 | Q84: 2 | R84: =_xlfn.TEXTJOIN(";",1,IF(AG84="","",101),IF(AH84="","",102),IF(AI84="","",103),IF(AJ84="","",106),IF(AK84="","",107),IF(AL84="","",108),IF(AM84="","",109),IF(AN84="","",110)) ->  | S84: =_xlfn.TEXTJOIN(";",1,AG84:AN84) ->  | T84: 1155 | U84: 1 | W84: 4 | X84: 90 | Y84: 45 | Z84: 5 | AA84: 6 | AB84: 100 | AD84: =CONCATENATE("手掌数量+",U84) -> 手掌数量+1 | AE84: 蚀骨腐血掌·贰
A85: 13022 | B85: 13012 | C85: 225 | D85: 378 | E85: 801 | F85: 蚀骨腐血掌 | G85: 快手释放{0}掌，对敌人造成{1}%伤害，并有{2}%几率对敌人施加1层毒，如果敌人毒超过{3}层，则每层毒对敌人的伤害提升{4}%，并有{5}%几率施加一层噬魂。 | H85: 4 | I85: icon_s1302 | J85: S1302 | K85: 1302 | L85: 1302_timeline_TD | M85: 1 | N85: 1 | O85: 3 | P85: 4;90;45;5;6;100 | Q85: 2 | R85: 103 | S85: 10 | T85: 1156 | W85: 4 | X85: 90 | Y85: 45 | Z85: 5 | AA85: 6 | AB85: 100 | AD85: =CONCATENATE("攻击+",S85,"%") -> 攻击+10% | AE85: 蚀骨腐血掌·叁 | AI85: 10
A86: 13023 | B86: 13012 | C86: 337.5 | D86: 379 | E86: 802 | F86: 蚀骨腐血掌 | G86: 快手释放{0}掌，对敌人造成{1}%伤害，并有{2}%几率对敌人施加1层毒，如果敌人毒超过{3}层，则每层毒对敌人的伤害提升{4}%，并有{5}%几率施加一层噬魂。 | H86: 4 | I86: icon_s1302 | J86: S1302 | K86: 1302 | L86: 1302_timeline_TD | M86: 1 | N86: 1 | O86: 4 | P86: 5;90;45;5;6;100 | Q86: 2 | R86: 103 | S86: 10 | T86: 1157 | U86: 2 | W86: 5 | X86: 90 | Y86: 45 | Z86: 5 | AA86: 6 | AB86: 100 | AD86: =CONCATENATE("手掌数量+",U86) -> 手掌数量+2 | AE86: 蚀骨腐血掌·肆 | AI86: 10
A87: 13024 | B87: 13012 | C87: 506.25 | D87: 380 | E87: 803 | F87: 蚀骨腐血掌 | G87: 快手释放{0}掌，对敌人造成{1}%伤害，并有{2}%几率对敌人施加1层毒，如果敌人毒超过{3}层，则每层毒对敌人的伤害提升{4}%，并有{5}%几率施加一层噬魂。 | H87: 4 | I87: icon_s1302 | J87: S1302 | K87: 1302 | L87: 1302_timeline_TD | M87: 1 | N87: 1 | O87: 5 | P87: 5;90;45;5;6;100 | Q87: 2 | R87: 103 | S87: 20 | T87: 1158 | W87: 5 | X87: 90 | Y87: 45 | Z87: 5 | AA87: 6 | AB87: 100 | AD87: =CONCATENATE("攻击+",S87,"%") -> 攻击+20% | AE87: 蚀骨腐血掌·伍 | AI87: 20
A88: 13025 | B88: 13012 | C88: 759.375 | D88: 381 | E88: 804 | F88: 蚀骨腐血掌 | G88: 快手释放{0}掌，对敌人造成{1}%伤害，并有{2}%几率对敌人施加1层毒，如果敌人毒超过{3}层，则每层毒对敌人的伤害提升{4}%，并有{5}%几率施加一层噬魂。 | H88: 4 | I88: icon_s1302 | J88: S1302 | K88: 1302 | L88: 1302_timeline_TD | M88: 1 | N88: 1 | O88: 6 | P88: 6;90;45;5;6;100 | Q88: 2 | R88: 103 | S88: 20 | T88: 1159 | U88: 3 | W88: 6 | X88: 90 | Y88: 45 | Z88: 5 | AA88: 6 | AB88: 100 | AD88: =CONCATENATE("手掌数量+",U88) -> 手掌数量+3 | AE88: 蚀骨腐血掌·陆 | AI88: 20
I89: icon_s
B90: =B83+1 -> 13013 | C90: 100 | D90: 382 | E90: 805 | G90: 占位 | H90: 4 | I90: icon_s1303 | J90: =CONCATENATE("S",K90) -> S1303 | K90: 1303 | L90: duzhen_timeline_TD | M90: 1 | N90: 1 | O90: 1 | P90: =_xlfn.TEXTJOIN(";",1,W90:AC90) -> 3;90;45;5;6;100 | Q90: 2 | R90: =_xlfn.TEXTJOIN(";",1,IF(AG90="","",101),IF(AH90="","",102),IF(AI90="","",103),IF(AJ90="","",106),IF(AK90="","",107),IF(AL90="","",108),IF(AM90="","",109),IF(AN90="","",110)) ->  | S90: =_xlfn.TEXTJOIN(";",1,AG90:AN90) ->  | T90: -1 | W90: 3 | X90: 90 | Y90: 45 | Z90: 5 | AA90: 6 | AB90: 100 | AE90: =IF(F90="","",CONCATENATE(F90,"·",CHOOSE(O90,"壹","贰","叁","肆","伍","陆"))) -> 
B91: =B84+1 -> 13013 | C91: 150 | D91: 383 | E91: 806 | G91: 占位 | H91: 4 | I91: icon_s1303 | J91: =CONCATENATE("S",K91) -> S1303 | K91: 1303 | L91: duzhen_timeline_TD | M91: 1 | N91: 1 | O91: 2 | P91: =_xlfn.TEXTJOIN(";",1,W91:AC91) -> 4;90;45;5;6;100 | Q91: 2 | R91: =_xlfn.TEXTJOIN(";",1,IF(AG91="","",101),IF(AH91="","",102),IF(AI91="","",103),IF(AJ91="","",106),IF(AK91="","",107),IF(AL91="","",108),IF(AM91="","",109),IF(AN91="","",110)) ->  | S91: =_xlfn.TEXTJOIN(";",1,AG91:AN91) ->  | T91: 1160 | U91: 1 | W91: 4 | X91: 90 | Y91: 45 | Z91: 5 | AA91: 6 | AB91: 100 | AD91: =CONCATENATE("手掌数量+",U91) -> 手掌数量+1
B92: 13013 | C92: 225 | D92: 384 | E92: 807 | G92: 占位 | H92: 4 | I92: icon_s1303 | J92: S1303 | K92: 1303 | L92: duzhen_timeline_TD | M92: 1 | N92: 1 | O92: 3 | P92: 4;90;45;5;6;100 | Q92: 2 | R92: 102 | S92: 10 | T92: 1161 | W92: 4 | X92: 90 | Y92: 45 | Z92: 5 | AA92: 6 | AB92: 100 | AD92: =CONCATENATE("攻击+",S92,"%") -> 攻击+10% | AH92: 10
B93: 13013 | C93: 337.5 | D93: 385 | E93: 808 | G93: 占位 | H93: 4 | I93: icon_s1303 | J93: S1303 | K93: 1303 | L93: duzhen_timeline_TD | M93: 1 | N93: 1 | O93: 4 | P93: 5;90;45;5;6;100 | Q93: 2 | R93: 102 | S93: 10 | T93: 1162 | U93: 2 | W93: 5 | X93: 90 | Y93: 45 | Z93: 5 | AA93: 6 | AB93: 100 | AD93: =CONCATENATE("手掌数量+",U93) -> 手掌数量+2 | AH93: 10
B94: 13013 | C94: 506.25 | D94: 386 | E94: 809 | G94: 占位 | H94: 4 | I94: icon_s1303 | J94: S1303 | K94: 1303 | L94: duzhen_timeline_TD | M94: 1 | N94: 1 | O94: 5 | P94: 5;90;45;5;6;100 | Q94: 2 | R94: 102 | S94: 20 | T94: 1163 | W94: 5 | X94: 90 | Y94: 45 | Z94: 5 | AA94: 6 | AB94: 100 | AD94: =CONCATENATE("攻击+",S94,"%") -> 攻击+20% | AH94: 20
B95: 13013 | C95: 759.375 | D95: 387 | E95: 810 | G95: 占位 | H95: 4 | I95: icon_s1303 | J95: S1303 | K95: 1303 | L95: duzhen_timeline_TD | M95: 1 | N95: 1 | O95: 6 | P95: 6;90;45;5;6;100 | Q95: 2 | R95: 102 | S95: 20 | T95: 1164 | U95: 3 | W95: 6 | X95: 90 | Y95: 45 | Z95: 5 | AA95: 6 | AB95: 100 | AD95: =CONCATENATE("手掌数量+",U95) -> 手掌数量+3 | AH95: 20
I96: icon_s
A97: =K97*10+O97-1 -> 13040 | B97: =B90+1 -> 13014 | C97: 100 | D97: 382 | E97: 805 | F97: 竹刺 | G97: 发射{0}枚竹刺，对敌人造成{1}%伤害。 | H97: 4 | I97: icon_s1304 | J97: =CONCATENATE("S",K97) -> S1304 | K97: 1304 | L97: 1304_timeline_TD | M97: 1 | N97: 1 | O97: 1 | P97: =_xlfn.TEXTJOIN(";",1,W97:AC97) -> 6;60 | Q97: 2 | R97: =_xlfn.TEXTJOIN(";",1,IF(AG97="","",101),IF(AH97="","",102),IF(AI97="","",103),IF(AJ97="","",106),IF(AK97="","",107),IF(AL97="","",108),IF(AM97="","",109),IF(AN97="","",110)) ->  | S97: =_xlfn.TEXTJOIN(";",1,AG97:AN97) ->  | T97: -1 | W97: 6 | X97: 60 | AE97: 竹刺·壹
A98: =K98*10+O98-1 -> 13041 | B98: =B91+1 -> 13014 | C98: 150 | D98: 383 | E98: 806 | F98: 竹刺 | G98: 发射{0}枚竹刺，对敌人造成{1}%伤害。 | H98: 4 | I98: icon_s1304 | J98: =CONCATENATE("S",K98) -> S1304 | K98: 1304 | L98: 1304_timeline_TD | M98: 1 | N98: 1 | O98: 2 | P98: =_xlfn.TEXTJOIN(";",1,W98:AC98) -> 6;60 | Q98: 2 | R98: =_xlfn.TEXTJOIN(";",1,IF(AG98="","",101),IF(AH98="","",102),IF(AI98="","",103),IF(AJ98="","",106),IF(AK98="","",107),IF(AL98="","",108),IF(AM98="","",109),IF(AN98="","",110)) -> 101;102;103 | S98: =_xlfn.TEXTJOIN(";",1,AG98:AN98) -> 2;2;2 | T98: 1165 | W98: 6 | X98: 60 | AD98: =CONCATENATE("生命、攻击、防御+",S98,"%") -> 生命、攻击、防御+2;2;2% | AE98: 竹刺·贰 | AG98: 2 | AH98: 2 | AI98: 2
A99: 13042 | B99: 13014 | C99: 225 | D99: 384 | E99: 807 | F99: 竹刺 | G99: 发射{0}枚竹刺，对敌人造成{1}%伤害。 | H99: 4 | I99: icon_s1304 | J99: S1304 | K99: 1304 | L99: 1304_timeline_TD | M99: 1 | N99: 1 | O99: 3 | P99: 8;60 | Q99: 2 | R99: 101;102;103 | S99: 2;2;2 | T99: 1166 | U99: 2 | W99: 8 | X99: 60 | AD99: =CONCATENATE("竹刺数量+",U99) -> 竹刺数量+2 | AE99: 竹刺·叁 | AG99: 2 | AH99: 2 | AI99: 2
A100: 13043 | B100: 13014 | C100: 337.5 | D100: 385 | E100: 808 | F100: 竹刺 | G100: 发射{0}枚竹刺，对敌人造成{1}%伤害。 | H100: 4 | I100: icon_s1304 | J100: S1304 | K100: 1304 | L100: 1304_timeline_TD | M100: 1 | N100: 1 | O100: 4 | P100: 8;60 | Q100: 2 | R100: 101;102;103 | S100: 4;4;4 | T100: 1167 | W100: 8 | X100: 60 | AD100: =CONCATENATE("生命、攻击、防御+",S100,"%") -> 生命、攻击、防御+4;4;4% | AE100: 竹刺·肆 | AG100: 4 | AH100: 4 | AI100: 4
A101: 13044 | B101: 13014 | C101: 506.25 | D101: 386 | E101: 809 | F101: 竹刺 | G101: 发射{0}枚竹刺，对敌人造成{1}%伤害。 | H101: 4 | I101: icon_s1304 | J101: S1304 | K101: 1304 | L101: 1304_timeline_TD | M101: 1 | N101: 1 | O101: 5 | P101: 10;60 | Q101: 2 | R101: 101;102;103 | S101: 4;4;4 | T101: 1168 | U101: 2 | W101: 10 | X101: 60 | AD101: =CONCATENATE("竹刺数量+",U101) -> 竹刺数量+2 | AE101: 竹刺·伍 | AG101: 4 | AH101: 4 | AI101: 4
A102: 13045 | B102: 13014 | C102: 759.375 | D102: 387 | E102: 810 | F102: 竹刺 | G102: 发射{0}枚竹刺，对敌人造成{1}%伤害。 | H102: 4 | I102: icon_s1304 | J102: S1304 | K102: 1304 | L102: 1304_timeline_TD | M102: 1 | N102: 1 | O102: 6 | P102: 10;60 | Q102: 2 | R102: 101;102;103 | S102: 6;6;6 | T102: 1169 | W102: 10 | X102: 60 | AD102: =CONCATENATE("生命、攻击、防御+",S102,"%") -> 生命、攻击、防御+6;6;6% | AE102: 竹刺·陆 | AG102: 6 | AH102: 6 | AI102: 6
I103: icon_s
A104: =K104*10+O104-1 -> 13050 | B104: =B97+1 -> 13015 | C104: 100 | D104: 388 | E104: 811 | F104: 飞叶 | G104: 发射{0}枚飞叶，对敌人造成{1}%伤害。 | H104: 4 | I104: icon_s1305 | J104: =CONCATENATE("S",K104) -> S1305 | K104: 1305 | L104: 1305_timeline_TD | M104: 1 | N104: 1 | O104: 1 | P104: =_xlfn.TEXTJOIN(";",1,W104:AC104) -> 6;60 | Q104: 2 | R104: =_xlfn.TEXTJOIN(";",1,IF(AG104="","",101),IF(AH104="","",102),IF(AI104="","",103),IF(AJ104="","",106),IF(AK104="","",107),IF(AL104="","",108),IF(AM104="","",109),IF(AN104="","",110)) ->  | S104: =_xlfn.TEXTJOIN(";",1,AG104:AN104) ->  | T104: -1 | W104: 6 | X104: 60 | AE104: 飞叶·壹
A105: =K105*10+O105-1 -> 13051 | B105: =B98+1 -> 13015 | C105: 150 | D105: 389 | E105: 812 | F105: 飞叶 | G105: 发射{0}枚飞叶，对敌人造成{1}%伤害。 | H105: 4 | I105: icon_s1305 | J105: =CONCATENATE("S",K105) -> S1305 | K105: 1305 | L105: 1305_timeline_TD | M105: 1 | N105: 1 | O105: 2 | P105: =_xlfn.TEXTJOIN(";",1,W105:AC105) -> 6;60 | Q105: 2 | R105: =_xlfn.TEXTJOIN(";",1,IF(AG105="","",101),IF(AH105="","",102),IF(AI105="","",103),IF(AJ105="","",106),IF(AK105="","",107),IF(AL105="","",108),IF(AM105="","",109),IF(AN105="","",110)) -> 101;102;103 | S105: =_xlfn.TEXTJOIN(";",1,AG105:AN105) -> 2;2;2 | T105: 1170 | W105: 6 | X105: 60 | AD105: =CONCATENATE("生命、攻击、防御+",S105,"%") -> 生命、攻击、防御+2;2;2% | AE105: 飞叶·贰 | AG105: 2 | AH105: 2 | AI105: 2
A106: 13052 | B106: 13015 | C106: 225 | D106: 390 | E106: 813 | F106: 飞叶 | G106: 发射{0}枚飞叶，对敌人造成{1}%伤害。 | H106: 4 | I106: icon_s1305 | J106: S1305 | K106: 1305 | L106: 1305_timeline_TD | M106: 1 | N106: 1 | O106: 3 | P106: 8;60 | Q106: 2 | R106: 101;102;103 | S106: 2;2;2 | T106: 1171 | U106: 2 | W106: 8 | X106: 60 | AD106: =CONCATENATE("飞叶数量+",U106) -> 飞叶数量+2 | AE106: 飞叶·叁 | AG106: 2 | AH106: 2 | AI106: 2
A107: 13053 | B107: 13015 | C107: 337.5 | D107: 391 | E107: 814 | F107: 飞叶 | G107: 发射{0}枚飞叶，对敌人造成{1}%伤害。 | H107: 4 | I107: icon_s1305 | J107: S1305 | K107: 1305 | L107: 1305_timeline_TD | M107: 1 | N107: 1 | O107: 4 | P107: 8;60 | Q107: 2 | R107: 101;102;103 | S107: 4;4;4 | T107: 1172 | W107: 8 | X107: 60 | AD107: =CONCATENATE("生命、攻击、防御+",S107,"%") -> 生命、攻击、防御+4;4;4% | AE107: 飞叶·肆 | AG107: 4 | AH107: 4 | AI107: 4
A108: 13054 | B108: 13015 | C108: 506.25 | D108: 392 | E108: 815 | F108: 飞叶 | G108: 发射{0}枚飞叶，对敌人造成{1}%伤害。 | H108: 4 | I108: icon_s1305 | J108: S1305 | K108: 1305 | L108: 1305_timeline_TD | M108: 1 | N108: 1 | O108: 5 | P108: 10;60 | Q108: 2 | R108: 101;102;103 | S108: 4;4;4 | T108: 1173 | U108: 2 | W108: 10 | X108: 60 | AD108: =CONCATENATE("飞叶数量+",U108) -> 飞叶数量+2 | AE108: 飞叶·伍 | AG108: 4 | AH108: 4 | AI108: 4
A109: 13055 | B109: 13015 | C109: 759.375 | D109: 393 | E109: 816 | F109: 飞叶 | G109: 发射{0}枚飞叶，对敌人造成{1}%伤害。 | H109: 4 | I109: icon_s1305 | J109: S1305 | K109: 1305 | L109: 1305_timeline_TD | M109: 1 | N109: 1 | O109: 6 | P109: 10;60 | Q109: 2 | R109: 101;102;103 | S109: 6;6;6 | T109: 1174 | W109: 10 | X109: 60 | AD109: =CONCATENATE("生命、攻击、防御+",S109,"%") -> 生命、攻击、防御+6;6;6% | AE109: 飞叶·陆 | AG109: 6 | AH109: 6 | AI109: 6
I110: icon_s
A111: =K111*10+O111-1 -> 14010 | B111: =B104+1 -> 13016 | C111: 100 | D111: 394 | E111: 817 | F111: 烈焰剑 | G111: 向前方发出{0}柄剑，对敌人造成{1}%火系伤害，并有{2}%的概率施加1层灼烧。 | H111: 8 | I111: icon_s1401 | J111: =CONCATENATE("S",K111) -> S1401 | K111: 1401 | L111: 1401_timeline_TD | M111: 1 | N111: 1 | O111: 1 | P111: =_xlfn.TEXTJOIN(";",1,W111:AC111) -> 6;60;15 | Q111: 2 | R111: =_xlfn.TEXTJOIN(";",1,IF(AG111="","",101),IF(AH111="","",102),IF(AI111="","",103),IF(AJ111="","",106),IF(AK111="","",107),IF(AL111="","",108),IF(AM111="","",109),IF(AN111="","",110)) ->  | S111: =_xlfn.TEXTJOIN(";",1,AG111:AN111) ->  | T111: -1 | W111: 6 | X111: 60 | Y111: 15 | AE111: 烈焰剑·壹
A112: =K112*10+O112-1 -> 14011 | B112: =B105+1 -> 13016 | C112: 150 | D112: 395 | E112: 818 | F112: 烈焰剑 | G112: 向前方发出{0}柄剑，对敌人造成{1}%火系伤害，并有{2}%的概率施加1层灼烧。 | H112: 8 | I112: icon_s1401 | J112: =CONCATENATE("S",K112) -> S1401 | K112: 1401 | L112: 1401_timeline_TD | M112: 1 | N112: 1 | O112: 2 | P112: =_xlfn.TEXTJOIN(";",1,W112:AC112) -> 8;60;15 | Q112: 2 | R112: =_xlfn.TEXTJOIN(";",1,IF(AG112="","",101),IF(AH112="","",102),IF(AI112="","",103),IF(AJ112="","",106),IF(AK112="","",107),IF(AL112="","",108),IF(AM112="","",109),IF(AN112="","",110)) ->  | S112: =_xlfn.TEXTJOIN(";",1,AG112:AN112) ->  | T112: 1175 | U112: 2 | W112: 8 | X112: 60 | Y112: 15 | AD112: =CONCATENATE("剑柄数量+",U112) -> 剑柄数量+2 | AE112: 烈焰剑·贰
A113: 14012 | B113: 13016 | C113: 225 | D113: 396 | E113: 819 | F113: 烈焰剑 | G113: 向前方发出{0}柄剑，对敌人造成{1}%火系伤害，并有{2}%的概率施加1层灼烧。 | H113: 8 | I113: icon_s1401 | J113: S1401 | K113: 1401 | L113: 1401_timeline_TD | M113: 1 | N113: 1 | O113: 3 | P113: 8;60;15 | Q113: 2 | R113: 101 | S113: 10 | T113: 1176 | W113: 8 | X113: 60 | Y113: 15 | AD113: =CONCATENATE("生命+",S113,"%") -> 生命+10% | AE113: 烈焰剑·叁 | AG113: 10
A114: 14013 | B114: 13016 | C114: 337.5 | D114: 397 | E114: 820 | F114: 烈焰剑 | G114: 向前方发出{0}柄剑，对敌人造成{1}%火系伤害，并有{2}%的概率施加1层灼烧。 | H114: 8 | I114: icon_s1401 | J114: S1401 | K114: 1401 | L114: 1401_timeline_TD | M114: 1 | N114: 1 | O114: 4 | P114: 10;60;15 | Q114: 2 | R114: 101 | S114: 10 | T114: 1177 | U114: 4 | W114: 10 | X114: 60 | Y114: 15 | AD114: =CONCATENATE("剑柄数量+",U114) -> 剑柄数量+4 | AE114: 烈焰剑·肆 | AG114: 10
A115: 14014 | B115: 13016 | C115: 506.25 | D115: 398 | E115: 821 | F115: 烈焰剑 | G115: 向前方发出{0}柄剑，对敌人造成{1}%火系伤害，并有{2}%的概率施加1层灼烧。 | H115: 8 | I115: icon_s1401 | J115: S1401 | K115: 1401 | L115: 1401_timeline_TD | M115: 1 | N115: 1 | O115: 5 | P115: 10;60;15 | Q115: 2 | R115: 101 | S115: 20 | T115: 1178 | W115: 10 | X115: 60 | Y115: 15 | AD115: =CONCATENATE("生命+",S115,"%") -> 生命+20% | AE115: 烈焰剑·伍 | AG115: 20
A116: 14015 | B116: 13016 | C116: 759.375 | D116: 399 | E116: 822 | F116: 烈焰剑 | G116: 向前方发出{0}柄剑，对敌人造成{1}%火系伤害，并有{2}%的概率施加1层灼烧。 每柄烈焰剑将会对敌人照成爆燃，爆燃额外受到{3}%伤害 | H116: 8 | I116: icon_s1401 | J116: S1401 | K116: 1401 | L116: 1401_timeline_TD | M116: 1 | N116: 1 | O116: 6 | P116: 10;60;15;20 | Q116: 2 | R116: 101 | S116: 20 | T116: 1179 | W116: 10 | X116: 60 | Y116: 15 | Z116: 20 | AD116: 额外造成爆燃伤害 | AE116: 烈焰剑·陆 | AG116: 20
I117: icon_s
A118: =K118*10+O118-1 -> 14020 | B118: =B111+1 -> 13017 | C118: 100 | D118: 400 | E118: 823 | F118: 赤焰龙吟功 | G118: 飞出{0}道巨龙，对敌人造成{1}火系伤害。 | H118: 8 | I118: icon_s1402 | J118: =CONCATENATE("S",K118) -> S1402 | K118: 1402 | L118: 1402_timeline_TD | M118: 1 | N118: 1 | O118: 1 | P118: =_xlfn.TEXTJOIN(";",1,W118:AC118) -> 2;200 | Q118: 2 | R118: =_xlfn.TEXTJOIN(";",1,IF(AG118="","",101),IF(AH118="","",102),IF(AI118="","",103),IF(AJ118="","",106),IF(AK118="","",107),IF(AL118="","",108),IF(AM118="","",109),IF(AN118="","",110)) ->  | S118: =_xlfn.TEXTJOIN(";",1,AG118:AN118) ->  | T118: -1 | W118: 2 | X118: 200 | AE118: 赤焰龙吟功·壹
A119: =K119*10+O119-1 -> 14021 | B119: =B112+1 -> 13017 | C119: 150 | D119: 401 | E119: 824 | F119: 赤焰龙吟功 | G119: 飞出{0}道巨龙，对敌人造成{1}火系伤害。 如果敌人处于灼烧中对其造成胆摄，眩晕敌人{2}秒。 | H119: 8 | I119: icon_s1402 | J119: =CONCATENATE("S",K119) -> S1402 | K119: 1402 | L119: 1402_timeline_TD | M119: 1 | N119: 1 | O119: 2 | P119: =_xlfn.TEXTJOIN(";",1,W119:AC119) -> 2;200;2 | Q119: 2 | R119: =_xlfn.TEXTJOIN(";",1,IF(AG119="","",101),IF(AH119="","",102),IF(AI119="","",103),IF(AJ119="","",106),IF(AK119="","",107),IF(AL119="","",108),IF(AM119="","",109),IF(AN119="","",110)) ->  | S119: =_xlfn.TEXTJOIN(";",1,AG119:AN119) ->  | T119: 1180 | W119: 2 | X119: 200 | Y119: 2 | AD119: 眩晕处于灼烧中的敌人 | AE119: 赤焰龙吟功·贰
A120: 14022 | B120: 13017 | C120: 225 | D120: 402 | E120: 825 | F120: 赤焰龙吟功 | G120: 飞出{0}道巨龙，对敌人造成{1}火系伤害。 如果敌人处于灼烧中对其造成胆摄，眩晕敌人{2}秒。 | H120: 8 | I120: icon_s1402 | J120: S1402 | K120: 1402 | L120: 1402_timeline_TD | M120: 1 | N120: 1 | O120: 3 | P120: 2;200;2 | Q120: 2 | R120: 102 | S120: 10 | T120: 1181 | W120: 2 | X120: 200 | Y120: 2 | AD120: =CONCATENATE("攻击+",S120,"%") -> 攻击+10% | AE120: 赤焰龙吟功·叁 | AH120: 10
A121: 14023 | B121: 13017 | C121: 337.5 | D121: 403 | E121: 826 | F121: 赤焰龙吟功 | G121: 飞出{0}道巨龙，对敌人造成{1}火系伤害并{3}%施加1层灼烧。 如果敌人处于灼烧中对其造成胆摄，眩晕敌人{2}秒。 | H121: 8 | I121: icon_s1402 | J121: S1402 | K121: 1402 | L121: 1402_timeline_TD | M121: 1 | N121: 1 | O121: 4 | P121: 3;200;2;100 | Q121: 2 | R121: 102 | S121: 10 | T121: 1182 | U121: 2 | W121: 3 | X121: 200 | Y121: 2 | Z121: 100 | AD121: =CONCATENATE("飞龙数量+",U121,"，额外造成灼烧") -> 飞龙数量+2，额外造成灼烧 | AE121: 赤焰龙吟功·肆 | AH121: 10
A122: 14024 | B122: 13017 | C122: 506.25 | D122: 404 | E122: 827 | F122: 赤焰龙吟功 | G122: 飞出{0}道巨龙，对敌人造成{1}火系伤害并{3}%施加1层灼烧。 如果敌人处于灼烧中对其造成胆摄，眩晕敌人{2}秒。 | H122: 8 | I122: icon_s1402 | J122: S1402 | K122: 1402 | L122: 1402_timeline_TD | M122: 1 | N122: 1 | O122: 5 | P122: 3;200;2;100 | Q122: 2 | R122: 102 | S122: 20 | T122: 1183 | W122: 3 | X122: 200 | Y122: 2 | Z122: 100 | AD122: =CONCATENATE("攻击+",S122,"%") -> 攻击+20% | AE122: 赤焰龙吟功·伍 | AH122: 20
A123: 14025 | B123: 13017 | C123: 759.375 | D123: 405 | E123: 828 | F123: 赤焰龙吟功 | G123: 飞出{0}道巨龙，对敌人造成{1}火系伤害并{3}%施加1层灼烧。 如果敌人处于灼烧中对其造成胆摄，眩晕敌人{2}秒。 飞龙命中目标后引发天雷，对敌人额外造成{4}%伤害。 | H123: 8 | I123: icon_s1402 | J123: S1402 | K123: 1402 | L123: 1402_timeline_TD | M123: 1 | N123: 1 | O123: 6 | P123: 3;200;2;100;25 | Q123: 2 | R123: 102 | S123: 20 | T123: 1184 | W123: 3 | X123: 200 | Y123: 2 | Z123: 100 | AA123: 25 | AD123: 额外引发天雷伤害 | AE123: 赤焰龙吟功·陆 | AH123: 20
I124: icon_s
A125: =K125*10+O125-1 -> 14030 | B125: =B118+1 -> 13018 | C125: 100 | D125: 406 | E125: 829 | F125: 朱雀燎原指 | G125: 身后出现一只大手，每个手指发射{0}道烈焰，对敌人照成{1}伤害同时{2}%概率施加1层灼烧。 | H125: 8 | I125: icon_s1403 | J125: =CONCATENATE("S",K125) -> S1403 | K125: 1403 | L125: 1403_timeline_TD | M125: 1 | N125: 1 | O125: 1 | P125: =_xlfn.TEXTJOIN(";",1,W125:AC125) -> 2;20;30 | Q125: 2 | R125: =_xlfn.TEXTJOIN(";",1,IF(AG125="","",101),IF(AH125="","",102),IF(AI125="","",103),IF(AJ125="","",106),IF(AK125="","",107),IF(AL125="","",108),IF(AM125="","",109),IF(AN125="","",110)) ->  | S125: =_xlfn.TEXTJOIN(";",1,AG125:AN125) ->  | T125: -1 | W125: 2 | X125: 20 | Y125: 30 | AE125: 朱雀燎原指·壹
A126: =K126*10+O126-1 -> 14031 | B126: =B119+1 -> 13018 | C126: 150 | D126: 407 | E126: 830 | F126: 朱雀燎原指 | G126: 身后出现一只大手，每个手指发射{0}道烈焰，对敌人照成{1}伤害同时{2}%概率施加1层灼烧。 对有灼烧的敌人额外造成{3}%最终伤害。 | H126: 8 | I126: icon_s1403 | J126: =CONCATENATE("S",K126) -> S1403 | K126: 1403 | L126: 1403_timeline_TD | M126: 1 | N126: 1 | O126: 2 | P126: =_xlfn.TEXTJOIN(";",1,W126:AC126) -> 2;20;30;20 | Q126: 2 | R126: =_xlfn.TEXTJOIN(";",1,IF(AG126="","",101),IF(AH126="","",102),IF(AI126="","",103),IF(AJ126="","",106),IF(AK126="","",107),IF(AL126="","",108),IF(AM126="","",109),IF(AN126="","",110)) ->  | S126: =_xlfn.TEXTJOIN(";",1,AG126:AN126) ->  | T126: 1185 | W126: 2 | X126: 20 | Y126: 30 | Z126: 20 | AD126: 对灼烧的敌人额外增伤 | AE126: 朱雀燎原指·贰
A127: 14032 | B127: 13018 | C127: 225 | D127: 408 | E127: 831 | F127: 朱雀燎原指 | G127: 身后出现一只大手，每个手指发射{0}道烈焰，对敌人照成{1}伤害同时{2}%概率施加1层灼烧。 对有灼烧的敌人额外造成{3}%最终伤害。 | H127: 8 | I127: icon_s1403 | J127: S1403 | K127: 1403 | L127: 1403_timeline_TD | M127: 1 | N127: 1 | O127: 3 | P127: 2;20;30;20 | Q127: 2 | R127: 103 | S127: 10 | T127: 1186 | W127: 2 | X127: 20 | Y127: 30 | Z127: 20 | AD127: =CONCATENATE("防御+",S127,"%") -> 防御+10% | AE127: 朱雀燎原指·叁 | AI127: 10
A128: 14033 | B128: 13018 | C128: 337.5 | D128: 409 | E128: 832 | F128: 朱雀燎原指 | G128: 身后出现一只大手，每个手指发射{0}道烈焰，对敌人照成{1}伤害同时{2}%概率施加1层灼烧。 对有灼烧的敌人额外造成{3}%最终伤害。 | H128: 8 | I128: icon_s1403 | J128: S1403 | K128: 1403 | L128: 1403_timeline_TD | M128: 1 | N128: 1 | O128: 4 | P128: 3;20;30;20 | Q128: 2 | R128: 103 | S128: 10 | T128: 1187 | W128: 3 | X128: 20 | Y128: 30 | Z128: 20 | AD128: 每个手指额外发射1道烈焰 | AE128: 朱雀燎原指·肆 | AI128: 10
A129: 14034 | B129: 13018 | C129: 506.25 | D129: 410 | E129: 833 | F129: 朱雀燎原指 | G129: 身后出现一只大手，每个手指发射{0}道烈焰，对敌人照成{1}伤害同时{2}%概率施加1层灼烧。 对有灼烧的敌人额外造成{3}%最终伤害。 | H129: 8 | I129: icon_s1403 | J129: S1403 | K129: 1403 | L129: 1403_timeline_TD | M129: 1 | N129: 1 | O129: 5 | P129: 3;20;30;20 | Q129: 2 | R129: 103 | S129: 20 | T129: 1188 | W129: 3 | X129: 20 | Y129: 30 | Z129: 20 | AD129: =CONCATENATE("防御+",S129,"%") -> 防御+20% | AE129: 朱雀燎原指·伍 | AI129: 20
A130: 14035 | B130: 13018 | C130: 759.375 | D130: 411 | E130: 834 | F130: 朱雀燎原指 | G130: 身后出现一只大手，每个手指发射{0}道烈焰，对敌人照成{1}伤害同时{2}%概率施加1层灼烧。 对有灼烧的敌人额外造成{3}%最终伤害。 在左右各出现一只大手发射烈焰，但每道烈焰伤害降低{4}%。 | H130: 8 | I130: icon_s1403 | J130: S1403 | K130: 1403 | L130: 1403_timeline_TD | M130: 1 | N130: 1 | O130: 6 | P130: 3;20;30;20;35 | Q130: 2 | R130: 103 | S130: 20 | T130: 1189 | W130: 3 | X130: 20 | Y130: 30 | Z130: 20 | AA130: 35 | AD130: 出现2只大手但单发伤害降低 | AE130: 朱雀燎原指·陆 | AI130: 20
I131: =CONCATENATE("icon_s",K131) -> icon_s
A132: =K132*10+O132-1 -> 14040 | B132: =B125+1 -> 13019 | C132: 100 | D132: 412 | E132: 835 | F132: 火球 | G132: 发射{0}枚火球，对敌人造成{1}%伤害。又{2}概率对敌人施加1成灼烧 | H132: 8 | I132: icon_s1404 | J132: =CONCATENATE("S",K132) -> S1404 | K132: 1404 | L132: 1404_timeline_TD | M132: 1 | N132: 1 | O132: 1 | P132: =_xlfn.TEXTJOIN(";",1,W132:AC132) -> 3;70;20 | Q132: 2 | R132: =_xlfn.TEXTJOIN(";",1,IF(AG132="","",101),IF(AH132="","",102),IF(AI132="","",103),IF(AJ132="","",106),IF(AK132="","",107),IF(AL132="","",108),IF(AM132="","",109),IF(AN132="","",110)) ->  | S132: =_xlfn.TEXTJOIN(";",1,AG132:AN132) ->  | T132: -1 | W132: 3 | X132: 70 | Y132: 20 | AE132: 火球·壹
A133: =K133*10+O133-1 -> 14041 | B133: =B126+1 -> 13019 | C133: 150 | D133: 413 | E133: 836 | F133: 火球 | G133: 发射{0}枚火球，对敌人造成{1}%伤害。又{2}概率对敌人施加1成灼烧 | H133: 8 | I133: icon_s1404 | J133: =CONCATENATE("S",K133) -> S1404 | K133: 1404 | L133: 1404_timeline_TD | M133: 1 | N133: 1 | O133: 2 | P133: =_xlfn.TEXTJOIN(";",1,W133:AC133) -> 3;70;20 | Q133: 2 | R133: =_xlfn.TEXTJOIN(";",1,IF(AG133="","",101),IF(AH133="","",102),IF(AI133="","",103),IF(AJ133="","",106),IF(AK133="","",107),IF(AL133="","",108),IF(AM133="","",109),IF(AN133="","",110)) -> 101;102;103 | S133: =_xlfn.TEXTJOIN(";",1,AG133:AN133) -> 2;2;2 | T133: 1190 | W133: 3 | X133: 70 | Y133: 20 | AD133: =CONCATENATE("生命、攻击、防御+",S133,"%") -> 生命、攻击、防御+2;2;2% | AE133: 火球·贰 | AG133: 2 | AH133: 2 | AI133: 2
A134: 14042 | B134: 13019 | C134: 225 | D134: 414 | E134: 837 | F134: 火球 | G134: 发射{0}枚火球，对敌人造成{1}%伤害。又{2}概率对敌人施加1成灼烧 | H134: 8 | I134: icon_s1404 | J134: S1404 | K134: 1404 | L134: 1404_timeline_TD | M134: 1 | N134: 1 | O134: 3 | P134: 4;70;20 | Q134: 2 | R134: 101;102;103 | S134: 2;2;2 | T134: 1191 | U134: 1 | W134: 4 | X134: 70 | Y134: 20 | AD134: =CONCATENATE("火球数量+",U134) -> 火球数量+1 | AE134: 火球·叁 | AG134: 2 | AH134: 2 | AI134: 2
A135: 14043 | B135: 13019 | C135: 337.5 | D135: 415 | E135: 838 | F135: 火球 | G135: 发射{0}枚火球，对敌人造成{1}%伤害。又{2}概率对敌人施加1成灼烧 | H135: 8 | I135: icon_s1404 | J135: S1404 | K135: 1404 | L135: 1404_timeline_TD | M135: 1 | N135: 1 | O135: 4 | P135: 4;70;20 | Q135: 2 | R135: 101;102;103 | S135: 4;4;4 | T135: 1192 | W135: 4 | X135: 70 | Y135: 20 | AD135: =CONCATENATE("生命、攻击、防御+",S135,"%") -> 生命、攻击、防御+4;4;4% | AE135: 火球·肆 | AG135: 4 | AH135: 4 | AI135: 4
A136: 14044 | B136: 13019 | C136: 506.25 | D136: 416 | E136: 839 | F136: 火球 | G136: 发射{0}枚火球，对敌人造成{1}%伤害。又{2}概率对敌人施加1成灼烧 | H136: 8 | I136: icon_s1404 | J136: S1404 | K136: 1404 | L136: 1404_timeline_TD | M136: 1 | N136: 1 | O136: 5 | P136: 5;70;20 | Q136: 2 | R136: 101;102;103 | S136: 4;4;4 | T136: 1193 | U136: 2 | W136: 5 | X136: 70 | Y136: 20 | AD136: =CONCATENATE("火球数量+",U136) -> 火球数量+2 | AE136: 火球·伍 | AG136: 4 | AH136: 4 | AI136: 4
A137: 14045 | B137: 13019 | C137: 759.375 | D137: 417 | E137: 840 | F137: 火球 | G137: 发射{0}枚火球，对敌人造成{1}%伤害。又{2}概率对敌人施加1成灼烧 | H137: 8 | I137: icon_s1404 | J137: S1404 | K137: 1404 | L137: 1404_timeline_TD | M137: 1 | N137: 1 | O137: 6 | P137: 5;100;20 | Q137: 2 | R137: 101;102;103 | S137: 6;6;6 | T137: 1194 | W137: 5 | X137: 100 | Y137: 20 | AD137: 生命、攻击、防御+6;6;6% | AE137: 火球·陆 | AG137: 6 | AH137: 6 | AI137: 6
I138: icon_s
A139: =K139*10+O139-1 -> 14050 | B139: =B132+1 -> 13020 | C139: 100 | D139: 418 | E139: 841 | F139: 火刀 | G139: 发射{0}枚火刃，对敌人造成{1}%伤害。 | H139: 8 | I139: icon_s1405 | J139: =CONCATENATE("S",K139) -> S1405 | K139: 1405 | L139: 1405_timeline_TD | M139: 1 | N139: 1 | O139: 1 | P139: =_xlfn.TEXTJOIN(";",1,W139:AC139) -> 3;80 | Q139: 2 | R139: =_xlfn.TEXTJOIN(";",1,IF(AG139="","",101),IF(AH139="","",102),IF(AI139="","",103),IF(AJ139="","",106),IF(AK139="","",107),IF(AL139="","",108),IF(AM139="","",109),IF(AN139="","",110)) ->  | S139: =_xlfn.TEXTJOIN(";",1,AG139:AN139) ->  | T139: -1 | W139: 3 | X139: 80 | AE139: 火刀·壹
A140: =K140*10+O140-1 -> 14051 | B140: =B133+1 -> 13020 | C140: 150 | D140: 419 | E140: 842 | F140: 火刀 | G140: 发射{0}枚火刃，对敌人造成{1}%伤害。 | H140: 8 | I140: icon_s1405 | J140: =CONCATENATE("S",K140) -> S1405 | K140: 1405 | L140: 1405_timeline_TD | M140: 1 | N140: 1 | O140: 2 | P140: =_xlfn.TEXTJOIN(";",1,W140:AC140) -> 3;80 | Q140: 2 | R140: =_xlfn.TEXTJOIN(";",1,IF(AG140="","",101),IF(AH140="","",102),IF(AI140="","",103),IF(AJ140="","",106),IF(AK140="","",107),IF(AL140="","",108),IF(AM140="","",109),IF(AN140="","",110)) -> 101;102;103 | S140: =_xlfn.TEXTJOIN(";",1,AG140:AN140) -> 2;2;2 | T140: 1195 | W140: 3 | X140: 80 | AD140: =CONCATENATE("生命、攻击、防御+",S140,"%") -> 生命、攻击、防御+2;2;2% | AE140: 火刀·贰 | AG140: 2 | AH140: 2 | AI140: 2
A141: 14052 | B141: 13020 | C141: 225 | D141: 420 | E141: 843 | F141: 火刀 | G141: 发射{0}枚火刃，对敌人造成{1}%伤害。 | H141: 8 | I141: icon_s1405 | J141: S1405 | K141: 1405 | L141: 1405_timeline_TD | M141: 1 | N141: 1 | O141: 3 | P141: 4;80 | Q141: 2 | R141: 101;102;103 | S141: 2;2;2 | T141: 1196 | U141: 1 | W141: 4 | X141: 80 | AD141: =CONCATENATE("火刃数量+",U141) -> 火刃数量+1 | AE141: 火刀·叁 | AG141: 2 | AH141: 2 | AI141: 2
A142: 14053 | B142: 13020 | C142: 337.5 | D142: 421 | E142: 844 | F142: 火刀 | G142: 发射{0}枚火刃，对敌人造成{1}%伤害。 | H142: 8 | I142: icon_s1405 | J142: S1405 | K142: 1405 | L142: 1405_timeline_TD | M142: 1 | N142: 1 | O142: 4 | P142: 4;80 | Q142: 2 | R142: 101;102;103 | S142: 4;4;4 | T142: 1197 | W142: 4 | X142: 80 | AD142: =CONCATENATE("生命、攻击、防御+",S142,"%") -> 生命、攻击、防御+4;4;4% | AE142: 火刀·肆 | AG142: 4 | AH142: 4 | AI142: 4
A143: 14054 | B143: 13020 | C143: 506.25 | D143: 422 | E143: 845 | F143: 火刀 | G143: 发射{0}枚火刃，对敌人造成{1}%伤害。 | H143: 8 | I143: icon_s1405 | J143: S1405 | K143: 1405 | L143: 1405_timeline_TD | M143: 1 | N143: 1 | O143: 5 | P143: 5;80 | Q143: 2 | R143: 101;102;103 | S143: 4;4;4 | T143: 1198 | U143: 2 | W143: 5 | X143: 80 | AD143: =CONCATENATE("火刃数量+",U143) -> 火刃数量+2 | AE143: 火刀·伍 | AG143: 4 | AH143: 4 | AI143: 4
A144: 14055 | B144: 13020 | C144: 759.375 | D144: 423 | E144: 846 | F144: 火刀 | G144: 发射{0}枚火刃，对敌人造成{1}%伤害。 | H144: 8 | I144: icon_s1405 | J144: S1405 | K144: 1405 | L144: 1405_timeline_TD | M144: 1 | N144: 1 | O144: 6 | P144: 5;100 | Q144: 2 | R144: 101;102;103 | S144: 6;6;6 | T144: 1199 | W144: 5 | X144: 100 | AD144: 生命、攻击、防御+6;6;6% | AE144: 火刀·陆 | AG144: 6 | AH144: 6 | AI144: 6
I145: icon_s
A146: =K146*10+O146-1 -> 15010 | B146: =B139+1 -> 13021 | C146: 100 | D146: 424 | E146: 847 | F146: 黄尘灭魂刺 | G146: 沙尘汇聚成{0}枚土刺，对敌人造成{1}%伤害，并有{2}%概率施加1层细尘。 | H146: 16 | I146: icon_s1501 | J146: =CONCATENATE("S",K146) -> S1501 | K146: 1501 | L146: bingqiu_timeline_TD | M146: 1 | N146: 1 | O146: 1 | P146: =_xlfn.TEXTJOIN(";",1,W146:AC146) -> 3;120;30 | Q146: 2 | R146: =_xlfn.TEXTJOIN(";",1,IF(AG146="","",101),IF(AH146="","",102),IF(AI146="","",103),IF(AJ146="","",106),IF(AK146="","",107),IF(AL146="","",108),IF(AM146="","",109),IF(AN146="","",110)) ->  | S146: =_xlfn.TEXTJOIN(";",1,AG146:AN146) ->  | T146: -1 | W146: 3 | X146: 120 | Y146: 30 | AE146: 黄尘灭魂刺·壹
A147: =K147*10+O147-1 -> 15011 | B147: =B140+1 -> 13021 | C147: 150 | D147: 425 | E147: 848 | F147: 黄尘灭魂刺 | G147: 沙尘汇聚成{0}枚土刺，对敌人造成{1}%伤害，并有{2}%概率施加1层细尘。 | H147: 16 | I147: icon_s1501 | J147: =CONCATENATE("S",K147) -> S1501 | K147: 1501 | L147: bingqiu_timeline_TD | M147: 1 | N147: 1 | O147: 2 | P147: =_xlfn.TEXTJOIN(";",1,W147:AC147) -> 4;120;30 | Q147: 2 | R147: =_xlfn.TEXTJOIN(";",1,IF(AG147="","",101),IF(AH147="","",102),IF(AI147="","",103),IF(AJ147="","",106),IF(AK147="","",107),IF(AL147="","",108),IF(AM147="","",109),IF(AN147="","",110)) ->  | S147: =_xlfn.TEXTJOIN(";",1,AG147:AN147) ->  | T147: 1200 | U147: 1 | W147: 4 | X147: 120 | Y147: 30 | AD147: =CONCATENATE("土刺数量+",U147) -> 土刺数量+1 | AE147: 黄尘灭魂刺·贰
A148: 15012 | B148: 13021 | C148: 225 | D148: 426 | E148: 849 | F148: 黄尘灭魂刺 | G148: 沙尘汇聚成{0}枚土刺，对敌人造成{1}%伤害，并有{2}%概率施加1层细尘。 | H148: 16 | I148: icon_s1501 | J148: S1501 | K148: 1501 | L148: bingqiu_timeline_TD | M148: 1 | N148: 1 | O148: 3 | P148: 4;120;30 | Q148: 2 | R148: 101 | S148: 10 | T148: 1201 | W148: 4 | X148: 120 | Y148: 30 | AD148: =CONCATENATE("生命+",S148,"%") -> 生命+10% | AE148: =IF(F148="","",CONCATENATE(F148,"·",CHOOSE(O148,"壹","贰","叁","肆","伍","陆"))) -> 黄尘灭魂刺·叁 | AG148: 10
A149: 15013 | B149: 13021 | C149: 337.5 | D149: 427 | E149: 850 | F149: 黄尘灭魂刺 | G149: 沙尘汇聚成{0}枚土刺，对敌人造成{1}%伤害，并有{2}%概率施加1层细尘。 | H149: 16 | I149: icon_s1501 | J149: S1501 | K149: 1501 | L149: bingqiu_timeline_TD | M149: 1 | N149: 1 | O149: 4 | P149: 5;120;30 | Q149: 2 | R149: 101 | S149: 10 | T149: 1202 | U149: 2 | W149: 5 | X149: 120 | Y149: 30 | AD149: =CONCATENATE("土刺数量+",U149) -> 土刺数量+2 | AE149: 黄尘灭魂刺·肆 | AG149: 10
A150: 15014 | B150: 13021 | C150: 506.25 | D150: 428 | E150: 851 | F150: 黄尘灭魂刺 | G150: 沙尘汇聚成{0}枚土刺，对敌人造成{1}%伤害，并有{2}%概率施加1层细尘。 | H150: 16 | I150: icon_s1501 | J150: S1501 | K150: 1501 | L150: bingqiu_timeline_TD | M150: 1 | N150: 1 | O150: 5 | P150: 5;120;30 | Q150: 2 | R150: 101 | S150: 20 | T150: 1203 | W150: 5 | X150: 120 | Y150: 30 | AD150: =CONCATENATE("生命+",S150,"%") -> 生命+20% | AE150: 黄尘灭魂刺·伍 | AG150: 20
A151: 15015 | B151: 13021 | C151: 759.375 | D151: 429 | E151: 852 | F151: 黄尘灭魂刺 | G151: 沙尘汇聚成{0}枚土刺，对敌人造成{1}%伤害，并有{2}%概率施加1层细尘。 | H151: 16 | I151: icon_s1501 | J151: S1501 | K151: 1501 | L151: bingqiu_timeline_TD | M151: 1 | N151: 1 | O151: 6 | P151: 6;120;30 | Q151: 2 | R151: 101 | S151: 20 | T151: 1204 | U151: 3 | W151: 6 | X151: 120 | Y151: 30 | AD151: =CONCATENATE("土刺数量+",U151) -> 土刺数量+3 | AE151: 黄尘灭魂刺·陆 | AG151: 20
I152: icon_s
A153: =K153*10+O153-1 -> 15020 | B153: =B146+1 -> 13022 | C153: 100 | D153: 430 | E153: 853 | F153: 地裂屠龙斩 | G153: 一柄虚空形成的大刀，横空挥砍形成{0}个刀气，对敌人造成{1}%伤害，并有{2}%概率叠加1层破甲 | H153: 16 | I153: icon_s1502 | J153: =CONCATENATE("S",K153) -> S1502 | K153: 1502 | L153: bingzhui_timeline_TD | M153: 1 | N153: 1 | O153: 1 | P153: =_xlfn.TEXTJOIN(";",1,W153:AC153) -> 3;120;30 | Q153: 2 | R153: =_xlfn.TEXTJOIN(";",1,IF(AG153="","",101),IF(AH153="","",102),IF(AI153="","",103),IF(AJ153="","",106),IF(AK153="","",107),IF(AL153="","",108),IF(AM153="","",109),IF(AN153="","",110)) ->  | S153: =_xlfn.TEXTJOIN(";",1,AG153:AN153) ->  | T153: -1 | W153: 3 | X153: 120 | Y153: 30 | AE153: 地裂屠龙斩·壹
A154: =K154*10+O154-1 -> 15021 | B154: =B147+1 -> 13022 | C154: 150 | D154: 431 | E154: 854 | F154: 地裂屠龙斩 | G154: 一柄虚空形成的大刀，横空挥砍形成{0}个刀气，对敌人造成{1}%伤害，并有{2}%概率叠加1层破甲 | H154: 16 | I154: icon_s1502 | J154: =CONCATENATE("S",K154) -> S1502 | K154: 1502 | L154: bingzhui_timeline_TD | M154: 1 | N154: 1 | O154: 2 | P154: =_xlfn.TEXTJOIN(";",1,W154:AC154) -> 4;120;30 | Q154: 2 | R154: =_xlfn.TEXTJOIN(";",1,IF(AG154="","",101),IF(AH154="","",102),IF(AI154="","",103),IF(AJ154="","",106),IF(AK154="","",107),IF(AL154="","",108),IF(AM154="","",109),IF(AN154="","",110)) ->  | S154: =_xlfn.TEXTJOIN(";",1,AG154:AN154) ->  | T154: 1205 | U154: 1 | W154: 4 | X154: 120 | Y154: 30 | AD154: =CONCATENATE("刀气数量+",U154) -> 刀气数量+1 | AE154: 地裂屠龙斩·贰
A155: 15022 | B155: 13022 | C155: 225 | D155: 432 | E155: 855 | F155: 地裂屠龙斩 | G155: 一柄虚空形成的大刀，横空挥砍形成{0}个刀气，对敌人造成{1}%伤害，并有{2}%概率叠加1层破甲 | H155: 16 | I155: icon_s1502 | J155: S1502 | K155: 1502 | L155: bingzhui_timeline_TD | M155: 1 | N155: 1 | O155: 3 | P155: 4;120;30 | Q155: 2 | R155: 102 | S155: 10 | T155: 1206 | W155: 4 | X155: 120 | Y155: 30 | AD155: =CONCATENATE("攻击+",S155,"%") -> 攻击+10% | AE155: 地裂屠龙斩·叁 | AH155: 10
A156: 15023 | B156: 13022 | C156: 337.5 | D156: 433 | E156: 856 | F156: 地裂屠龙斩 | G156: 一柄虚空形成的大刀，横空挥砍形成{0}个刀气，对敌人造成{1}%伤害，并有{2}%概率叠加1层破甲 | H156: 16 | I156: icon_s1502 | J156: S1502 | K156: 1502 | L156: bingzhui_timeline_TD | M156: 1 | N156: 1 | O156: 4 | P156: 5;120;30 | Q156: 2 | R156: 102 | S156: 10 | T156: 1207 | U156: 2 | W156: 5 | X156: 120 | Y156: 30 | AD156: =CONCATENATE("刀气数量+",U156) -> 刀气数量+2 | AE156: 地裂屠龙斩·肆 | AH156: 10
A157: 15024 | B157: 13022 | C157: 506.25 | D157: 434 | E157: 857 | F157: 地裂屠龙斩 | G157: 一柄虚空形成的大刀，横空挥砍形成{0}个刀气，对敌人造成{1}%伤害，并有{2}%概率叠加1层破甲 | H157: 16 | I157: icon_s1502 | J157: S1502 | K157: 1502 | L157: bingzhui_timeline_TD | M157: 1 | N157: 1 | O157: 5 | P157: 5;120;30 | Q157: 2 | R157: 102 | S157: 20 | T157: 1208 | W157: 5 | X157: 120 | Y157: 30 | AD157: =CONCATENATE("攻击+",S157,"%") -> 攻击+20% | AE157: 地裂屠龙斩·伍 | AH157: 20
A158: 15025 | B158: 13022 | C158: 759.375 | D158: 435 | E158: 858 | F158: 地裂屠龙斩 | G158: 一柄虚空形成的大刀，横空挥砍形成{0}个刀气，对敌人造成{1}%伤害，并有{2}%概率叠加1层破甲 | H158: 16 | I158: icon_s1502 | J158: S1502 | K158: 1502 | L158: bingzhui_timeline_TD | M158: 1 | N158: 1 | O158: 6 | P158: 6;120;30 | Q158: 2 | R158: 102 | S158: 20 | T158: 1209 | U158: 3 | W158: 6 | X158: 120 | Y158: 30 | AD158: =CONCATENATE("刀气数量+",U158) -> 刀气数量+3 | AE158: 地裂屠龙斩·陆 | AH158: 20
I159: icon_s
B160: =B153+1 -> 13023 | C160: 100 | D160: 436 | E160: 859 | G160: 占位 | H160: 16 | I160: icon_s1503 | J160: =CONCATENATE("S",K160) -> S1503 | K160: 1503 | L160: bingzhui_timeline_TD | M160: 1 | N160: 1 | O160: 1 | P160: =_xlfn.TEXTJOIN(";",1,W160:AC160) -> 3;120;30 | Q160: 2 | R160: =_xlfn.TEXTJOIN(";",1,IF(AG160="","",101),IF(AH160="","",102),IF(AI160="","",103),IF(AJ160="","",106),IF(AK160="","",107),IF(AL160="","",108),IF(AM160="","",109),IF(AN160="","",110)) ->  | S160: =_xlfn.TEXTJOIN(";",1,AG160:AN160) ->  | T160: -1 | W160: 3 | X160: 120 | Y160: 30 | AE160: =IF(F160="","",CONCATENATE(F160,"·",CHOOSE(O160,"壹","贰","叁","肆","伍","陆"))) -> 
B161: =B154+1 -> 13023 | C161: 150 | D161: 437 | E161: 860 | G161: 占位 | H161: 16 | I161: icon_s1503 | J161: =CONCATENATE("S",K161) -> S1503 | K161: 1503 | L161: bingzhui_timeline_TD | M161: 1 | N161: 1 | O161: 2 | P161: =_xlfn.TEXTJOIN(";",1,W161:AC161) -> 4;120;30 | Q161: 2 | R161: =_xlfn.TEXTJOIN(";",1,IF(AG161="","",101),IF(AH161="","",102),IF(AI161="","",103),IF(AJ161="","",106),IF(AK161="","",107),IF(AL161="","",108),IF(AM161="","",109),IF(AN161="","",110)) ->  | S161: =_xlfn.TEXTJOIN(";",1,AG161:AN161) ->  | T161: 1210 | U161: 1 | W161: 4 | X161: 120 | Y161: 30 | AD161: =CONCATENATE("刀气数量+",U161) -> 刀气数量+1
B162: 13023 | C162: 225 | D162: 438 | E162: 861 | G162: 占位 | H162: 16 | I162: icon_s1503 | J162: S1503 | K162: 1503 | L162: bingzhui_timeline_TD | M162: 1 | N162: 1 | O162: 3 | P162: 4;120;30 | Q162: 2 | R162: 103 | S162: 10 | T162: 1211 | W162: 4 | X162: 120 | Y162: 30 | AD162: =CONCATENATE("攻击+",S162,"%") -> 攻击+10% | AI162: 10
B163: 13023 | C163: 337.5 | D163: 439 | E163: 862 | G163: 占位 | H163: 16 | I163: icon_s1503 | J163: S1503 | K163: 1503 | L163: bingzhui_timeline_TD | M163: 1 | N163: 1 | O163: 4 | P163: 5;120;30 | Q163: 2 | R163: 103 | S163: 10 | T163: 1212 | U163: 2 | W163: 5 | X163: 120 | Y163: 30 | AD163: =CONCATENATE("刀气数量+",U163) -> 刀气数量+2 | AI163: 10
B164: 13023 | C164: 506.25 | D164: 440 | E164: 863 | G164: 占位 | H164: 16 | I164: icon_s1503 | J164: S1503 | K164: 1503 | L164: bingzhui_timeline_TD | M164: 1 | N164: 1 | O164: 5 | P164: 5;120;30 | Q164: 2 | R164: 103 | S164: 20 | T164: 1213 | W164: 5 | X164: 120 | Y164: 30 | AD164: =CONCATENATE("攻击+",S164,"%") -> 攻击+20% | AI164: 20
B165: 13023 | C165: 759.375 | D165: 441 | E165: 864 | G165: 占位 | H165: 16 | I165: icon_s1503 | J165: S1503 | K165: 1503 | L165: bingzhui_timeline_TD | M165: 1 | N165: 1 | O165: 6 | P165: 6;120;30 | Q165: 2 | R165: 103 | S165: 20 | T165: 1214 | U165: 3 | W165: 6 | X165: 120 | Y165: 30 | AD165: =CONCATENATE("刀气数量+",U165) -> 刀气数量+3 | AI165: 20
I166: icon_s
A167: =K167*10+O167-1 -> 15040 | B167: =B160+1 -> 13024 | C167: 100 | D167: 436 | E167: 859 | F167: 落石 | G167: 从天而降{0}枚落石，对敌人造成{1}%伤害。 | H167: 16 | I167: icon_s1504 | J167: =CONCATENATE("S",K167) -> S1504 | K167: 1504 | L167: bingqiu_timeline_TD | M167: 1 | N167: 1 | O167: 1 | P167: =_xlfn.TEXTJOIN(";",1,W167:AC167) -> 3;100 | Q167: 2 | R167: =_xlfn.TEXTJOIN(";",1,IF(AG167="","",101),IF(AH167="","",102),IF(AI167="","",103),IF(AJ167="","",106),IF(AK167="","",107),IF(AL167="","",108),IF(AM167="","",109),IF(AN167="","",110)) ->  | S167: =_xlfn.TEXTJOIN(";",1,AG167:AN167) ->  | T167: -1 | W167: 3 | X167: 100 | AE167: 落石·壹
A168: =K168*10+O168-1 -> 15041 | B168: =B161+1 -> 13024 | C168: 150 | D168: 437 | E168: 860 | F168: 落石 | G168: 从天而降{0}枚落石，对敌人造成{1}%伤害。 | H168: 16 | I168: icon_s1504 | J168: =CONCATENATE("S",K168) -> S1504 | K168: 1504 | L168: bingqiu_timeline_TD | M168: 1 | N168: 1 | O168: 2 | P168: =_xlfn.TEXTJOIN(";",1,W168:AC168) -> 3;100 | Q168: 2 | R168: =_xlfn.TEXTJOIN(";",1,IF(AG168="","",101),IF(AH168="","",102),IF(AI168="","",103),IF(AJ168="","",106),IF(AK168="","",107),IF(AL168="","",108),IF(AM168="","",109),IF(AN168="","",110)) -> 101;102;103 | S168: =_xlfn.TEXTJOIN(";",1,AG168:AN168) -> 2;2;2 | T168: 1215 | W168: 3 | X168: 100 | AD168: =CONCATENATE("生命、攻击、防御+",S168,"%") -> 生命、攻击、防御+2;2;2% | AE168: 落石·贰 | AG168: 2 | AH168: 2 | AI168: 2
A169: 15042 | B169: 13024 | C169: 225 | D169: 438 | E169: 861 | F169: 落石 | G169: 从天而降{0}枚落石，对敌人造成{1}%伤害。 | H169: 16 | I169: icon_s1504 | J169: S1504 | K169: 1504 | L169: bingqiu_timeline_TD | M169: 1 | N169: 1 | O169: 3 | P169: 4;100 | Q169: 2 | R169: 101;102;103 | S169: 2;2;2 | T169: 1216 | U169: 1 | W169: 4 | X169: 100 | AD169: =CONCATENATE("落石数量+",U169) -> 落石数量+1 | AE169: 落石·叁 | AG169: 2 | AH169: 2 | AI169: 2
A170: 15043 | B170: 13024 | C170: 337.5 | D170: 439 | E170: 862 | F170: 落石 | G170: 从天而降{0}枚落石，对敌人造成{1}%伤害。 | H170: 16 | I170: icon_s1504 | J170: S1504 | K170: 1504 | L170: bingqiu_timeline_TD | M170: 1 | N170: 1 | O170: 4 | P170: 4;100 | Q170: 2 | R170: 101;102;103 | S170: 4;4;4 | T170: 1217 | W170: 4 | X170: 100 | AD170: =CONCATENATE("生命、攻击、防御+",S170,"%") -> 生命、攻击、防御+4;4;4% | AE170: 落石·肆 | AG170: 4 | AH170: 4 | AI170: 4
A171: 15044 | B171: 13024 | C171: 506.25 | D171: 440 | E171: 863 | F171: 落石 | G171: 从天而降{0}枚落石，对敌人造成{1}%伤害。 | H171: 16 | I171: icon_s1504 | J171: S1504 | K171: 1504 | L171: bingqiu_timeline_TD | M171: 1 | N171: 1 | O171: 5 | P171: 5;100 | Q171: 2 | R171: 101;102;103 | S171: 4;4;4 | T171: 1218 | U171: 2 | W171: 5 | X171: 100 | AD171: =CONCATENATE("落石数量+",U171) -> 落石数量+2 | AE171: 落石·伍 | AG171: 4 | AH171: 4 | AI171: 4
A172: 15045 | B172: 13024 | C172: 759.375 | D172: 441 | E172: 864 | F172: 落石 | G172: 从天而降{0}枚落石，对敌人造成{1}%伤害。 | H172: 16 | I172: icon_s1504 | J172: S1504 | K172: 1504 | L172: bingqiu_timeline_TD | M172: 1 | N172: 1 | O172: 6 | P172: 5;100 | Q172: 2 | R172: 101;102;103 | S172: 6;6;6 | T172: 1219 | W172: 5 | X172: 100 | AD172: =CONCATENATE("生命、攻击、防御+",S172,"%") -> 生命、攻击、防御+6;6;6% | AE172: 落石·陆 | AG172: 6 | AH172: 6 | AI172: 6
I173: icon_s
A174: =K174*10+O174-1 -> 15050 | B174: =B167+1 -> 13025 | C174: 100 | D174: 442 | E174: 865 | F174: 小石头 | G174: 发射{0}枚小石头，对敌人造成{1}%伤害。 | H174: 16 | I174: icon_s1505 | J174: =CONCATENATE("S",K174) -> S1505 | K174: 1505 | L174: bingzhui_timeline_TD | M174: 1 | N174: 1 | O174: 1 | P174: =_xlfn.TEXTJOIN(";",1,W174:AC174) -> 6;100 | Q174: 2 | R174: =_xlfn.TEXTJOIN(";",1,IF(AG174="","",101),IF(AH174="","",102),IF(AI174="","",103),IF(AJ174="","",106),IF(AK174="","",107),IF(AL174="","",108),IF(AM174="","",109),IF(AN174="","",110)) ->  | S174: =_xlfn.TEXTJOIN(";",1,AG174:AN174) ->  | T174: -1 | W174: 6 | X174: 100 | AE174: 小石头·壹
A175: =K175*10+O175-1 -> 15051 | B175: =B168+1 -> 13025 | C175: 150 | D175: 443 | E175: 866 | F175: 小石头 | G175: 发射{0}枚小石头，对敌人造成{1}%伤害。 | H175: 16 | I175: icon_s1505 | J175: =CONCATENATE("S",K175) -> S1505 | K175: 1505 | L175: bingzhui_timeline_TD | M175: 1 | N175: 1 | O175: 2 | P175: =_xlfn.TEXTJOIN(";",1,W175:AC175) -> 6;100 | Q175: 2 | R175: =_xlfn.TEXTJOIN(";",1,IF(AG175="","",101),IF(AH175="","",102),IF(AI175="","",103),IF(AJ175="","",106),IF(AK175="","",107),IF(AL175="","",108),IF(AM175="","",109),IF(AN175="","",110)) -> 101;102;103 | S175: =_xlfn.TEXTJOIN(";",1,AG175:AN175) -> 2;2;2 | T175: 1220 | W175: 6 | X175: 100 | AD175: =CONCATENATE("生命、攻击、防御+",S175,"%") -> 生命、攻击、防御+2;2;2% | AE175: 小石头·贰 | AG175: 2 | AH175: 2 | AI175: 2
A176: 15052 | B176: 13025 | C176: 225 | D176: 444 | E176: 867 | F176: 小石头 | G176: 发射{0}枚小石头，对敌人造成{1}%伤害。 | H176: 16 | I176: icon_s1505 | J176: S1505 | K176: 1505 | L176: bingzhui_timeline_TD | M176: 1 | N176: 1 | O176: 3 | P176: 8;100 | Q176: 2 | R176: 101;102;103 | S176: 2;2;2 | T176: 1221 | U176: 2 | W176: 8 | X176: 100 | AD176: =CONCATENATE("小石头数量+",U176) -> 小石头数量+2 | AE176: 小石头·叁 | AG176: 2 | AH176: 2 | AI176: 2
A177: 15053 | B177: 13025 | C177: 337.5 | D177: 445 | E177: 868 | F177: 小石头 | G177: 发射{0}枚小石头，对敌人造成{1}%伤害。 | H177: 16 | I177: icon_s1505 | J177: S1505 | K177: 1505 | L177: bingzhui_timeline_TD | M177: 1 | N177: 1 | O177: 4 | P177: 8;100 | Q177: 2 | R177: 101;102;103 | S177: 4;4;4 | T177: 1222 | W177: 8 | X177: 100 | AD177: =CONCATENATE("生命、攻击、防御+",S177,"%") -> 生命、攻击、防御+4;4;4% | AE177: 小石头·肆 | AG177: 4 | AH177: 4 | AI177: 4
A178: 15054 | B178: 13025 | C178: 506.25 | D178: 446 | E178: 869 | F178: 小石头 | G178: 发射{0}枚小石头，对敌人造成{1}%伤害。 | H178: 16 | I178: icon_s1505 | J178: S1505 | K178: 1505 | L178: bingzhui_timeline_TD | M178: 1 | N178: 1 | O178: 5 | P178: 10;100 | Q178: 2 | R178: 101;102;103 | S178: 4;4;4 | T178: 1223 | U178: 4 | W178: 10 | X178: 100 | AD178: =CONCATENATE("小石头数量+",U178) -> 小石头数量+4 | AE178: 小石头·伍 | AG178: 4 | AH178: 4 | AI178: 4
A179: 15055 | B179: 13025 | C179: 759.375 | D179: 447 | E179: 870 | F179: 小石头 | G179: 发射{0}枚小石头，对敌人造成{1}%伤害。 | H179: 16 | I179: icon_s1505 | J179: S1505 | K179: 1505 | L179: bingzhui_timeline_TD | M179: 1 | N179: 1 | O179: 6 | P179: 10;100 | Q179: 2 | R179: 101;102;103 | S179: 6;6;6 | T179: 1224 | W179: 10 | X179: 100 | AD179: =CONCATENATE("生命、攻击、防御+",S179,"%") -> 生命、攻击、防御+6;6;6% | AE179: 小石头·陆 | AG179: 6 | AH179: 6 | AI179: 6
I180: icon_s
B181: 英雄-被动功法区域 | I181: icon_s
A182: =K182*10+O182-1 -> 20010 | B182: 13006 | C182: 100 | D182: 448 | E182: 871 | F182: 天衍星辰诀 | G182: 引星辰之力入体，增强玩家体魄， 让后方槽位的功法无视防御性护盾（功法法宝带来的防护罩、自身护盾） | H182: 0 | I182: icon_s2001 | J182: =CONCATENATE("S",K182) -> S2001 | K182: 2001 | M182: 1 | N182: 2 | O182: 1 | P182: =_xlfn.TEXTJOIN(";",1,W182:AC182) ->  | Q182: 0 | R182: =_xlfn.TEXTJOIN(";",1,IF(AG182="","",101),IF(AH182="","",102),IF(AI182="","",103),IF(AJ182="","",106),IF(AK182="","",107),IF(AL182="","",108),IF(AM182="","",109),IF(AN182="","",110)) ->  | S182: =_xlfn.TEXTJOIN(";",1,AG182:AN182) ->  | T182: -1 | V182: -1 | AE182: 天衍星辰诀·壹
A183: =K183*10+O183-1 -> 20011 | B183: 13006 | C183: 150 | D183: 449 | E183: 872 | F183: 天衍星辰诀 | G183: 引星辰之力入体，增强玩家体魄， 让后方槽位的功法无视防御性护盾（功法法宝带来的防护罩、自身护盾） | H183: 0 | I183: icon_s2001 | J183: =CONCATENATE("S",K183) -> S2001 | K183: 2001 | M183: 1 | N183: 2 | O183: 2 | P183: =_xlfn.TEXTJOIN(";",1,W183:AC183) ->  | Q183: 0 | R183: =_xlfn.TEXTJOIN(";",1,IF(AG183="","",101),IF(AH183="","",102),IF(AI183="","",103),IF(AJ183="","",106),IF(AK183="","",107),IF(AL183="","",108),IF(AM183="","",109),IF(AN183="","",110)) -> 101;102;103 | S183: =_xlfn.TEXTJOIN(";",1,AG183:AN183) -> 2;2;2 | T183: 1225 | V183: -1 | AD183: =CONCATENATE("生命、攻击、防御+",S183,"%") -> 生命、攻击、防御+2;2;2% | AE183: 天衍星辰诀·贰 | AG183: 2 | AH183: 2 | AI183: 2
A184: 20012 | B184: 13006 | C184: 225 | D184: 450 | E184: 873 | F184: 天衍星辰诀 | G184: 引星辰之力入体，增强玩家体魄， 让后方槽位的功法无视防御性护盾（功法法宝带来的防护罩、自身护盾） | H184: 0 | I184: icon_s2001 | J184: S2001 | K184: 2001 | M184: 1 | N184: 2 | O184: 3 | Q184: 0 | R184: 101;102;103 | S184: 4;4;4 | T184: 1226 | V184: -1 | AD184: =CONCATENATE("生命、攻击、防御+",S184,"%") -> 生命、攻击、防御+4;4;4% | AE184: 天衍星辰诀·叁 | AG184: 4 | AH184: 4 | AI184: 4
A185: 20013 | B185: 13006 | C185: 337.5 | D185: 451 | E185: 874 | F185: 天衍星辰诀 | G185: 引星辰之力入体，增强玩家体魄， 让后方槽位的功法无视防御性护盾（功法法宝带来的防护罩、自身护盾） | H185: 0 | I185: icon_s2001 | J185: S2001 | K185: 2001 | M185: 1 | N185: 2 | O185: 4 | Q185: 0 | R185: 101;102;103 | S185: 6;6;6 | T185: 1227 | V185: -1 | AD185: =CONCATENATE("生命、攻击、防御+",S185,"%") -> 生命、攻击、防御+6;6;6% | AE185: 天衍星辰诀·肆 | AG185: 6 | AH185: 6 | AI185: 6
A186: 20014 | B186: 13006 | C186: 506.25 | D186: 452 | E186: 875 | F186: 天衍星辰诀 | G186: 引星辰之力入体，增强玩家体魄， 让后方槽位的功法无视防御性护盾（功法法宝带来的防护罩、自身护盾） | H186: 0 | I186: icon_s2001 | J186: S2001 | K186: 2001 | M186: 1 | N186: 2 | O186: 5 | Q186: 0 | R186: 101;102;103 | S186: 8;8;8 | T186: 1228 | V186: -1 | AD186: =CONCATENATE("生命、攻击、防御+",S186,"%") -> 生命、攻击、防御+8;8;8% | AE186: 天衍星辰诀·伍 | AG186: 8 | AH186: 8 | AI186: 8
A187: 20015 | B187: 13006 | C187: 759.375 | D187: 453 | E187: 876 | F187: 天衍星辰诀 | G187: 引星辰之力入体，增强玩家体魄， 让后方槽位的功法无视防御性护盾（功法法宝带来的防护罩、自身护盾） | H187: 0 | I187: icon_s2001 | J187: S2001 | K187: 2001 | M187: 1 | N187: 2 | O187: 6 | Q187: 0 | R187: 101;102;103 | S187: 8;8;8 | T187: 1229 | V187: -1 | AD187: 穿过护盾时额外对护盾照成等额伤害 | AE187: 天衍星辰诀·陆 | AG187: 8 | AH187: 8 | AI187: 8
I188: icon_s
A189: =K189*10+O189-1 -> 20020 | B189: 13006 | C189: 100 | D189: 454 | E189: 877 | F189: 法宝秘籍 | G189: 后方槽位技能在击中目标时，为法宝提供{0}%充能 | H189: 0 | I189: icon_s2002 | J189: =CONCATENATE("S",K189) -> S2002 | K189: =K182+1 -> 2002 | M189: 1 | N189: 2 | O189: 1 | P189: =_xlfn.TEXTJOIN(";",1,W189:AC189) -> 1 | Q189: 0 | R189: =_xlfn.TEXTJOIN(";",1,IF(AG189="","",101),IF(AH189="","",102),IF(AI189="","",103),IF(AJ189="","",106),IF(AK189="","",107),IF(AL189="","",108),IF(AM189="","",109),IF(AN189="","",110)) ->  | S189: =_xlfn.TEXTJOIN(";",1,AG189:AN189) ->  | T189: -1 | V189: -1 | W189: 1 | AE189: 法宝秘籍·壹
A190: =K190*10+O190-1 -> 20021 | B190: 13006 | C190: 150 | D190: 455 | E190: 878 | F190: 法宝秘籍 | G190: 后方槽位技能在击中目标时，为法宝提供{0}%充能 | H190: 0 | I190: icon_s2002 | J190: =CONCATENATE("S",K190) -> S2002 | K190: =K183+1 -> 2002 | M190: 1 | N190: 2 | O190: 2 | P190: =_xlfn.TEXTJOIN(";",1,W190:AC190) -> 1 | Q190: 0 | R190: =_xlfn.TEXTJOIN(";",1,IF(AG190="","",101),IF(AH190="","",102),IF(AI190="","",103),IF(AJ190="","",106),IF(AK190="","",107),IF(AL190="","",108),IF(AM190="","",109),IF(AN190="","",110)) -> 101;102;103 | S190: =_xlfn.TEXTJOIN(";",1,AG190:AN190) -> 2;2;2 | T190: 1230 | V190: -1 | W190: 1 | AD190: =CONCATENATE("生命、攻击、防御+",S190,"%") -> 生命、攻击、防御+2;2;2% | AE190: 法宝秘籍·贰 | AG190: 2 | AH190: 2 | AI190: 2
A191: 20022 | B191: 13006 | C191: 225 | D191: 456 | E191: 879 | F191: 法宝秘籍 | G191: 后方槽位技能在击中目标时，为法宝提供{0}%充能 | H191: 0 | I191: icon_s2002 | J191: S2002 | K191: 2002 | M191: 1 | N191: 2 | O191: 3 | P191: 1 | Q191: 0 | R191: 101;102;103 | S191: 4;4;4 | T191: 1231 | V191: -1 | W191: 1 | AD191: =CONCATENATE("生命、攻击、防御+",S191,"%") -> 生命、攻击、防御+4;4;4% | AE191: 法宝秘籍·叁 | AG191: 4 | AH191: 4 | AI191: 4
A192: 20023 | B192: 13006 | C192: 337.5 | D192: 457 | E192: 880 | F192: 法宝秘籍 | G192: 后方槽位技能在击中目标时，为法宝提供{0}%充能 | H192: 0 | I192: icon_s2002 | J192: S2002 | K192: 2002 | M192: 1 | N192: 2 | O192: 4 | P192: 1 | Q192: 0 | R192: 101;102;103 | S192: 6;6;6 | T192: 1232 | V192: -1 | W192: 1 | AD192: =CONCATENATE("生命、攻击、防御+",S192,"%") -> 生命、攻击、防御+6;6;6% | AE192: 法宝秘籍·肆 | AG192: 6 | AH192: 6 | AI192: 6
A193: 20024 | B193: 13006 | C193: 506.25 | D193: 458 | E193: 881 | F193: 法宝秘籍 | G193: 后方槽位技能在击中目标时，为法宝提供{0}%充能 | H193: 0 | I193: icon_s2002 | J193: S2002 | K193: 2002 | M193: 1 | N193: 2 | O193: 5 | P193: 1 | Q193: 0 | R193: 101;102;103 | S193: 8;8;8 | T193: 1233 | V193: -1 | W193: 1 | AD193: =CONCATENATE("生命、攻击、防御+",S193,"%") -> 生命、攻击、防御+8;8;8% | AE193: 法宝秘籍·伍 | AG193: 8 | AH193: 8 | AI193: 8
A194: 20025 | B194: 13006 | C194: 759.375 | D194: 459 | E194: 882 | F194: 法宝秘籍 | G194: 后方槽位技能在击中目标时，为法宝提供{0}%充能。 法宝可以瞬间施放，且规避法宝对拼。 | H194: 0 | I194: icon_s2002 | J194: S2002 | K194: 2002 | M194: 1 | N194: 2 | O194: 6 | P194: 3 | Q194: 0 | R194: 101;102;103 | S194: 8;8;8 | T194: 1234 | V194: -1 | W194: 3 | AD194: 充能增效，法宝瞬发且不对拼 | AE194: 法宝秘籍·陆 | AG194: 8 | AH194: 8 | AI194: 8
I195: =CONCATENATE("icon_s",K195) -> icon_s
A196: =K196*10+O196-1 -> 20030 | B196: 13011 | C196: 100 | D196: 460 | E196: 883 | F196: 崩脉决 | G196: 前方功法造成伤害时有{0}%概率施加一层对应属性的伤势 | H196: 0 | I196: icon_s2003 | J196: =CONCATENATE("S",K196) -> S2003 | K196: =K189+1 -> 2003 | M196: 1 | N196: 2 | O196: 1 | P196: =_xlfn.TEXTJOIN(";",1,W196:AC196) -> 50 | Q196: 0 | R196: =_xlfn.TEXTJOIN(";",1,IF(AG196="","",101),IF(AH196="","",102),IF(AI196="","",103),IF(AJ196="","",106),IF(AK196="","",107),IF(AL196="","",108),IF(AM196="","",109),IF(AN196="","",110)) ->  | S196: =_xlfn.TEXTJOIN(";",1,AG196:AN196) ->  | T196: -1 | V196: 1 | W196: 50 | AE196: 崩脉决·壹
A197: =K197*10+O197-1 -> 20031 | B197: 13011 | C197: 150 | D197: 461 | E197: 884 | F197: 崩脉决 | G197: 前方功法造成伤害时有{0}%概率施加一层对应属性的伤势 | H197: 0 | I197: icon_s2003 | J197: =CONCATENATE("S",K197) -> S2003 | K197: =K190+1 -> 2003 | M197: 1 | N197: 2 | O197: 2 | P197: =_xlfn.TEXTJOIN(";",1,W197:AC197) -> 50 | Q197: 0 | R197: =_xlfn.TEXTJOIN(";",1,IF(AG197="","",101),IF(AH197="","",102),IF(AI197="","",103),IF(AJ197="","",106),IF(AK197="","",107),IF(AL197="","",108),IF(AM197="","",109),IF(AN197="","",110)) -> 101;102;103 | S197: =_xlfn.TEXTJOIN(";",1,AG197:AN197) -> 2;2;2 | T197: 1235 | V197: 1 | W197: 50 | AD197: =CONCATENATE("生命、攻击、防御+",S197,"%") -> 生命、攻击、防御+2;2;2% | AE197: 崩脉决·贰 | AG197: 2 | AH197: 2 | AI197: 2
A198: 20032 | B198: 13011 | C198: 225 | D198: 462 | E198: 885 | F198: 崩脉决 | G198: 前方功法造成伤害时有{0}%概率施加一层对应属性的伤势 | H198: 0 | I198: icon_s2003 | J198: S2003 | K198: 2003 | M198: 1 | N198: 2 | O198: 3 | P198: 50 | Q198: 0 | R198: 101;102;103 | S198: 4;4;4 | T198: 1236 | V198: 1 | W198: 50 | AD198: =CONCATENATE("生命、攻击、防御+",S198,"%") -> 生命、攻击、防御+4;4;4% | AE198: 崩脉决·叁 | AG198: 4 | AH198: 4 | AI198: 4
A199: 20033 | B199: 13011 | C199: 337.5 | D199: 463 | E199: 886 | F199: 崩脉决 | G199: 前方功法造成伤害时有{0}%概率施加一层对应属性的伤势 | H199: 0 | I199: icon_s2003 | J199: S2003 | K199: 2003 | M199: 1 | N199: 2 | O199: 4 | P199: 50 | Q199: 0 | R199: 101;102;103 | S199: 6;6;6 | T199: 1237 | V199: 1 | W199: 50 | AD199: =CONCATENATE("生命、攻击、防御+",S199,"%") -> 生命、攻击、防御+6;6;6% | AE199: 崩脉决·肆 | AG199: 6 | AH199: 6 | AI199: 6
A200: 20034 | B200: 13011 | C200: 506.25 | D200: 464 | E200: 887 | F200: 崩脉决 | G200: 前方功法造成伤害时有{0}%概率施加一层对应属性的伤势 | H200: 0 | I200: icon_s2003 | J200: S2003 | K200: 2003 | M200: 1 | N200: 2 | O200: 5 | P200: 50 | Q200: 0 | R200: 101;102;103 | S200: 8;8;8 | T200: 1238 | V200: 1 | W200: 50 | AD200: =CONCATENATE("生命、攻击、防御+",S200,"%") -> 生命、攻击、防御+8;8;8% | AE200: 崩脉决·伍 | AG200: 8 | AH200: 8 | AI200: 8
A201: 20035 | B201: 13011 | C201: 759.375 | D201: 465 | E201: 888 | F201: 崩脉决 | G201: 前方功法造成伤害时有{0}%概率施加一层对应属性的伤势 | H201: 0 | I201: icon_s2003 | J201: S2003 | K201: 2003 | M201: 1 | N201: 2 | O201: 6 | P201: 100 | Q201: 0 | R201: 101;102;103 | S201: 8;8;8 | T201: 1239 | V201: 1 | W201: 100 | AD201: 触发概率提升 | AE201: 崩脉决·陆 | AG201: 8 | AH201: 8 | AI201: 8
I202: icon_s
A203: =K203*10+O203-1 -> 20040 | B203: 13007 | C203: 100 | D203: 466 | E203: 889 | F203: 两仪决 | G203: 前后方法宝如果相生则双生效果增强{0}% | H203: 0 | I203: icon_s2004 | J203: =CONCATENATE("S",K203) -> S2004 | K203: =K196+1 -> 2004 | M203: 1 | N203: 2 | O203: 1 | P203: =_xlfn.TEXTJOIN(";",1,W203:AC203) -> 30 | Q203: 0 | R203: =_xlfn.TEXTJOIN(";",1,IF(AG203="","",101),IF(AH203="","",102),IF(AI203="","",103),IF(AJ203="","",106),IF(AK203="","",107),IF(AL203="","",108),IF(AM203="","",109),IF(AN203="","",110)) ->  | S203: =_xlfn.TEXTJOIN(";",1,AG203:AN203) ->  | T203: -1 | V203: 1;-1 | W203: 30 | AE203: 两仪决·壹
A204: =K204*10+O204-1 -> 20041 | B204: 13007 | C204: 150 | D204: 467 | E204: 890 | F204: 两仪决 | G204: 前后方法宝如果相生则双生效果增强{0}% | H204: 0 | I204: icon_s2004 | J204: =CONCATENATE("S",K204) -> S2004 | K204: =K197+1 -> 2004 | M204: 1 | N204: 2 | O204: 2 | P204: =_xlfn.TEXTJOIN(";",1,W204:AC204) -> 30 | Q204: 0 | R204: =_xlfn.TEXTJOIN(";",1,IF(AG204="","",101),IF(AH204="","",102),IF(AI204="","",103),IF(AJ204="","",106),IF(AK204="","",107),IF(AL204="","",108),IF(AM204="","",109),IF(AN204="","",110)) -> 101;102;103 | S204: =_xlfn.TEXTJOIN(";",1,AG204:AN204) -> 2;2;2 | T204: 1240 | V204: 1;-1 | W204: 30 | AD204: =CONCATENATE("生命、攻击、防御+",S204,"%") -> 生命、攻击、防御+2;2;2% | AE204: 两仪决·贰 | AG204: 2 | AH204: 2 | AI204: 2
A205: 20042 | B205: 13007 | C205: 225 | D205: 468 | E205: 891 | F205: 两仪决 | G205: 前后方法宝如果相生则双生效果增强{0}% | H205: 0 | I205: icon_s2004 | J205: S2004 | K205: 2004 | M205: 1 | N205: 2 | O205: 3 | P205: 30 | Q205: 0 | R205: 101;102;103 | S205: 4;4;4 | T205: 1241 | V205: 1;-1 | W205: 30 | AD205: =CONCATENATE("生命、攻击、防御+",S205,"%") -> 生命、攻击、防御+4;4;4% | AE205: 两仪决·叁 | AG205: 4 | AH205: 4 | AI205: 4
A206: 20043 | B206: 13007 | C206: 337.5 | D206: 469 | E206: 892 | F206: 两仪决 | G206: 前后方法宝如果相生则双生效果增强{0}% | H206: 0 | I206: icon_s2004 | J206: S2004 | K206: 2004 | M206: 1 | N206: 2 | O206: 4 | P206: 30 | Q206: 0 | R206: 101;102;103 | S206: 6;6;6 | T206: 1242 | V206: 1;-1 | W206: 30 | AD206: =CONCATENATE("生命、攻击、防御+",S206,"%") -> 生命、攻击、防御+6;6;6% | AE206: 两仪决·肆 | AG206: 6 | AH206: 6 | AI206: 6
A207: 20044 | B207: 13007 | C207: 506.25 | D207: 470 | E207: 893 | F207: 两仪决 | G207: 前后方法宝如果相生则双生效果增强{0}% | H207: 0 | I207: icon_s2004 | J207: S2004 | K207: 2004 | M207: 1 | N207: 2 | O207: 5 | P207: 30 | Q207: 0 | R207: 101;102;103 | S207: 8;8;8 | T207: 1243 | V207: 1;-1 | W207: 30 | AD207: =CONCATENATE("生命、攻击、防御+",S207,"%") -> 生命、攻击、防御+8;8;8% | AE207: 两仪决·伍 | AG207: 8 | AH207: 8 | AI207: 8
... 119 more rows

Sheet SkillPowerupConfig
A1: ID | B1: MainPower | C1: SkillPower1 | D1: LevelupItem | E1: LevelupItemNum | F1: PlayerLevelLimit
A2: int | B2: float | C2: float | D2: int[] | E2: int[] | F2: int
A4: 等级 | B4: 功法对拼标准强度 | C4: 标准强度百分比 | D4: 功法升级所需道具 | E4: 攻击升级所需道具数量 | F4: 升级所需境界 | G4: 1.1225 | H4: 100 | I4: 100
A5: 1 | B5: 100 | C5: 100 | D5: 1001;1005 | E5: 100;100 | F5: 5
A6: 2 | B6: =ROUND(B5*G$4,2) -> 112.25 | C6: =ROUND(C$5+(I$4*A5/60),2) -> 101.67 | D6: 1001;1005 | E6: 100;100 | F6: 10
A7: 3 | B7: =ROUND(B6*G$4,2) -> 126 | C7: =ROUND(C$5+(I$4*A6/60),2) -> 103.33 | D7: 1001;1005 | E7: 100;100 | F7: 15
A8: 4 | B8: 141.44 | C8: 105 | D8: 1001;1005 | E8: 100;100 | F8: 20
A9: 5 | B9: 158.77 | C9: 106.67 | D9: 1001;1005 | E9: 100;100 | F9: 25
A10: 6 | B10: 178.22 | C10: 108.33 | D10: 1001;1005 | E10: 100;100 | F10: 30
A11: 7 | B11: 200.05 | C11: 110 | D11: 1001;1005 | E11: 100;100 | F11: 35
A12: 8 | B12: 224.56 | C12: 111.67 | D12: 1001;1005 | E12: 100;100 | F12: 40
A13: 9 | B13: 252.07 | C13: 113.33 | D13: 1001;1005 | E13: 100;100 | F13: 45
A14: 10 | B14: 282.95 | C14: 115 | D14: 1001;1005 | E14: 100;100 | F14: 50
A15: 11 | B15: 317.61 | C15: 116.67 | D15: 1001;1005 | E15: 100;100 | F15: 55
A16: 12 | B16: 356.52 | C16: 118.33 | D16: 1001;1005 | E16: 100;100 | F16: 60
A17: 13 | B17: 400.19 | C17: 120 | D17: 1001;1005 | E17: 100;100 | F17: 65
A18: 14 | B18: 449.21 | C18: 121.67 | D18: 1001;1005 | E18: 100;100 | F18: 70
A19: 15 | B19: 504.24 | C19: 123.33 | D19: 1001;1005 | E19: 100;100 | F19: 75
A20: 16 | B20: 566.01 | C20: 125 | D20: 1001;1005 | E20: 100;100 | F20: 80
A21: 17 | B21: 635.35 | C21: 126.67 | D21: 1001;1005 | E21: 100;100 | F21: 85
A22: 18 | B22: 713.18 | C22: 128.33 | D22: 1001;1005 | E22: 100;100 | F22: 90
A23: 19 | B23: 800.54 | C23: 130 | D23: 1001;1005 | E23: 100;100 | F23: 95
A24: 20 | B24: 898.61 | C24: 131.67 | D24: 1001;1005 | E24: 100;100 | F24: 100
A25: 21 | B25: 1008.69 | C25: 133.33 | D25: 1001;1005 | E25: 100;100 | F25: 105
A26: 22 | B26: 1132.25 | C26: 135 | D26: 1001;1005 | E26: 100;100 | F26: 110
A27: 23 | B27: 1270.95 | C27: 136.67 | D27: 1001;1005 | E27: 100;100 | F27: 115
A28: 24 | B28: 1426.64 | C28: 138.33 | D28: 1001;1005 | E28: 100;100 | F28: 120
A29: 25 | B29: 1601.4 | C29: 140 | D29: 1001;1005 | E29: 100;100 | F29: 125
A30: 26 | B30: 1797.57 | C30: 141.67 | D30: 1001;1005 | E30: 100;100 | F30: 130
A31: 27 | B31: 2017.77 | C31: 143.33 | D31: 1001;1005 | E31: 100;100 | F31: 135
A32: 28 | B32: 2264.95 | C32: 145 | D32: 1001;1005 | E32: 100;100 | F32: 140
A33: 29 | B33: 2542.41 | C33: 146.67 | D33: 1001;1005 | E33: 100;100 | F33: 145
A34: 30 | B34: 2853.86 | C34: 148.33 | D34: 1001;1005 | E34: 100;100 | F34: 150
A35: 31 | B35: 3203.46 | C35: 150 | D35: 1001;1005 | E35: 100;100 | F35: 155
A36: 32 | B36: 3595.88 | C36: 151.67 | D36: 1001;1005 | E36: 100;100 | F36: 160
A37: 33 | B37: 4036.38 | C37: 153.33 | D37: 1001;1005 | E37: 100;100 | F37: 165
A38: 34 | B38: 4530.84 | C38: 155 | D38: 1001;1005 | E38: 100;100 | F38: 170
A39: 35 | B39: 5085.87 | C39: 156.67 | D39: 1001;1005 | E39: 100;100 | F39: 175
A40: 36 | B40: 5708.89 | C40: 158.33 | D40: 1001;1005 | E40: 100;100 | F40: 180
A41: 37 | B41: 6408.23 | C41: 160 | D41: 1001;1005 | E41: 100;100 | F41: 185
A42: 38 | B42: 7193.24 | C42: 161.67 | D42: 1001;1005 | E42: 100;100 | F42: 190
A43: 39 | B43: 8074.41 | C43: 163.33 | D43: 1001;1005 | E43: 100;100 | F43: 195
A44: 40 | B44: 9063.53 | C44: 165 | D44: 1001;1005 | E44: 100;100 | F44: 200
A45: 41 | B45: 10173.81 | C45: 166.67 | D45: 1001;1005 | E45: 100;100 | F45: 205
A46: 42 | B46: 11420.1 | C46: 168.33 | D46: 1001;1005 | E46: 100;100 | F46: 210
A47: 43 | B47: 12819.06 | C47: 170 | D47: 1001;1005 | E47: 100;100 | F47: 215
A48: 44 | B48: 14389.39 | C48: 171.67 | D48: 1001;1005 | E48: 100;100 | F48: 220
A49: 45 | B49: 16152.09 | C49: 173.33 | D49: 1001;1005 | E49: 100;100 | F49: 225
A50: 46 | B50: 18130.72 | C50: 175 | D50: 1001;1005 | E50: 100;100 | F50: 230
A51: 47 | B51: 20351.73 | C51: 176.67 | D51: 1001;1005 | E51: 100;100 | F51: 235
A52: 48 | B52: 22844.82 | C52: 178.33 | D52: 1001;1005 | E52: 100;100 | F52: 240
A53: 49 | B53: 25643.31 | C53: 180 | D53: 1001;1005 | E53: 100;100 | F53: 245
A54: 50 | B54: 28784.62 | C54: 181.67 | D54: 1001;1005 | E54: 100;100 | F54: 250
A55: 51 | B55: 32310.74 | C55: 183.33 | D55: 1001;1005 | E55: 100;100 | F55: 255
A56: 52 | B56: 36268.81 | C56: 185 | D56: 1001;1005 | E56: 100;100 | F56: 260
A57: 53 | B57: 40711.74 | C57: 186.67 | D57: 1001;1005 | E57: 100;100 | F57: 265
A58: 54 | B58: 45698.93 | C58: 188.33 | D58: 1001;1005 | E58: 100;100 | F58: 270
A59: 55 | B59: 51297.05 | C59: 190 | D59: 1001;1005 | E59: 100;100 | F59: 275
A60: 56 | B60: 57580.94 | C60: 191.67 | D60: 1001;1005 | E60: 100;100 | F60: 280
A61: 57 | B61: 64634.61 | C61: 193.33 | D61: 1001;1005 | E61: 100;100 | F61: 285
A62: 58 | B62: 72552.35 | C62: 195 | D62: 1001;1005 | E62: 100;100 | F62: 290
A63: 59 | B63: 81440.01 | C63: 196.67 | D63: 1001;1005 | E63: 100;100 | F63: 295
A64: 60 | B64: 91416.41 | C64: 198.33 | D64: 1001;1005 | E64: 100;100 | F64: 300
A65: 61 | B65: =ROUND(B64*G$4,2) -> 102614.92 | C65: 200 | D65: 1001;1005 | E65: 100;100 | F65: -1

Sheet SkillConstant
A1: ID | C1: SkilltoPieceNum | D1: SkillPromoteNeedPieceNum
A2: int | C2: int[] | D2: int[]
C4: 重复功法自动转碎片的数量 | D4: 功法升到对应星级所需碎片数量
A5: 1 | C5: =_xlfn.TEXTJOIN(";",1,C8:C17) -> 1;5;20;100;200;300;500;700;1000;1300 | D5: =_xlfn.TEXTJOIN(";",1,1,D8:D16) -> 1;4;15;80;100;100;200;200;300;300
E6: 升星所需数量
C7: 碎片数量 | D7: 升星所需碎片 | E7: 1星 | F7: 2星 | G7: 3星 | H7: 4星 | I7: 权重 | J7: 标准概率 | K7: 预设概率
B8: 1 | C8: 1 | D8: =C9-C8 -> 4 | E8: =D8/C$8 -> 4 | I8: =C$8*C$9*C$10*C$11/C8 -> 10000 | J8: =I8/SUM(I$8:I$11) -> 0.7936507937 | K8: =1-SUM(K9:K11) -> 0.825
B9: 2 | C9: 5 | D9: =C10-C9 -> 15 | E9: =D9/C$8 -> 15 | F9: =D9/C$9 -> 3 | I9: =C$8*C$9*C$10*C$11/C9 -> 2000 | J9: =I9/SUM(I$8:I$11) -> 0.1587301587 | K9: 0.14 | L9: =K9/J9 -> 0.882
B10: 3 | C10: 20 | D10: 80 | E10: 80 | F10: =D10/C$9 -> 16 | G10: =D10/C$10 -> 4 | I10: 500 | J10: 0.03968253968 | K10: 0.03 | L10: 0.756
B11: 4 | C11: 100 | D11: 100 | E11: 100 | F11: 20 | G11: =D11/C$10 -> 5 | H11: =D11/C$11 -> 1 | I11: 100 | J11: 0.007936507937 | K11: 0.005 | L11: 0.63
B12: 5 | C12: 200 | D12: 100 | E12: 100 | F12: 20 | G12: 5 | H12: =D12/C$11 -> 1
B13: 6 | C13: =C12+D12 -> 300 | D13: 200 | E13: 200 | F13: 40 | G13: 10 | H13: 2
B14: 7 | C14: =C13+D13 -> 500 | D14: 200 | E14: 200 | F14: 40 | G14: 10 | H14: 2
B15: 8 | C15: 700 | D15: 300 | E15: 300 | F15: 60 | G15: 15 | H15: 3
B16: 9 | C16: 1000 | D16: 300 | E16: 300 | F16: 60 | G16: 15 | H16: 3
B17: 10 | C17: 1300
E18: =SUM(E8:E16)+1 -> 1300 | F18: =SUM(F8:F16)+1 -> 260 | G18: =SUM(G8:G16)+1 -> 65 | H18: =SUM(H8:H16)+1 -> 13

Sheet 技能设计
C1: 生命 | D1: 攻击 | E1: 防御 | G1: 金 | H1: 水 | I1: 木 | J1: 火 | K1: 土
B2: 星级 | C2: 101 | D2: 102 | E2: 103 | G2: 106 | H2: 107 | I2: 108 | J2: 109 | K2: 110
A3: 0星 | B3: 1 | C3: =SUMIFS(SkillConfig!AG5:AG9999,SkillConfig!$A5:$A9999,"<>"&"",SkillConfig!$O5:$O9999,$B3) -> 0 | D3: =SUMIFS(SkillConfig!AH5:AH9999,SkillConfig!$A5:$A9999,"<>"&"",SkillConfig!$O5:$O9999,$B3) -> 0 | E3: =SUMIFS(SkillConfig!AI5:AI9999,SkillConfig!$A5:$A9999,"<>"&"",SkillConfig!$O5:$O9999,$B3) -> 0 | G3: =SUMIFS(SkillConfig!AJ5:AJ9999,SkillConfig!$A5:$A9999,"<>"&"",SkillConfig!$O5:$O9999,$B3) -> 0 | H3: =SUMIFS(SkillConfig!AK5:AK9999,SkillConfig!$A5:$A9999,"<>"&"",SkillConfig!$O5:$O9999,$B3) -> 0 | I3: =SUMIFS(SkillConfig!AL5:AL9999,SkillConfig!$A5:$A9999,"<>"&"",SkillConfig!$O5:$O9999,$B3) -> 0 | J3: =SUMIFS(SkillConfig!AM5:AM9999,SkillConfig!$A5:$A9999,"<>"&"",SkillConfig!$O5:$O9999,$B3) -> 0 | K3: =SUMIFS(SkillConfig!AN5:AN9999,SkillConfig!$A5:$A9999,"<>"&"",SkillConfig!$O5:$O9999,$B3) -> 0
A4: 1星 | B4: 2 | C4: =SUMIFS(SkillConfig!AG6:AG10000,SkillConfig!$A6:$A10000,"<>"&"",SkillConfig!$O6:$O10000,$B4) -> 36 | D4: =SUMIFS(SkillConfig!AH6:AH10000,SkillConfig!$A6:$A10000,"<>"&"",SkillConfig!$O6:$O10000,$B4) -> 36 | E4: =SUMIFS(SkillConfig!AI6:AI10000,SkillConfig!$A6:$A10000,"<>"&"",SkillConfig!$O6:$O10000,$B4) -> 36 | G4: =SUMIFS(SkillConfig!AJ6:AJ10000,SkillConfig!$A6:$A10000,"<>"&"",SkillConfig!$O6:$O10000,$B4) -> 5 | H4: =SUMIFS(SkillConfig!AK6:AK10000,SkillConfig!$A6:$A10000,"<>"&"",SkillConfig!$O6:$O10000,$B4) -> 0 | I4: =SUMIFS(SkillConfig!AL6:AL10000,SkillConfig!$A6:$A10000,"<>"&"",SkillConfig!$O6:$O10000,$B4) -> 5 | J4: =SUMIFS(SkillConfig!AM6:AM10000,SkillConfig!$A6:$A10000,"<>"&"",SkillConfig!$O6:$O10000,$B4) -> 5 | K4: =SUMIFS(SkillConfig!AN6:AN10000,SkillConfig!$A6:$A10000,"<>"&"",SkillConfig!$O6:$O10000,$B4) -> 0
A5: 2星 | B5: 3 | C5: =SUMIFS(SkillConfig!AG7:AG10001,SkillConfig!$A7:$A10001,"<>"&"",SkillConfig!$O7:$O10001,$B5) -> 102 | D5: =SUMIFS(SkillConfig!AH7:AH10001,SkillConfig!$A7:$A10001,"<>"&"",SkillConfig!$O7:$O10001,$B5) -> 87 | E5: =SUMIFS(SkillConfig!AI7:AI10001,SkillConfig!$A7:$A10001,"<>"&"",SkillConfig!$O7:$O10001,$B5) -> 97 | G5: =SUMIFS(SkillConfig!AJ7:AJ10001,SkillConfig!$A7:$A10001,"<>"&"",SkillConfig!$O7:$O10001,$B5) -> 5 | H5: =SUMIFS(SkillConfig!AK7:AK10001,SkillConfig!$A7:$A10001,"<>"&"",SkillConfig!$O7:$O10001,$B5) -> 5 | I5: =SUMIFS(SkillConfig!AL7:AL10001,SkillConfig!$A7:$A10001,"<>"&"",SkillConfig!$O7:$O10001,$B5) -> 10 | J5: =SUMIFS(SkillConfig!AM7:AM10001,SkillConfig!$A7:$A10001,"<>"&"",SkillConfig!$O7:$O10001,$B5) -> 10 | K5: =SUMIFS(SkillConfig!AN7:AN10001,SkillConfig!$A7:$A10001,"<>"&"",SkillConfig!$O7:$O10001,$B5) -> 5
A6: 3星 | B6: 4 | C6: =SUMIFS(SkillConfig!AG8:AG10002,SkillConfig!$A8:$A10002,"<>"&"",SkillConfig!$O8:$O10002,$B6) -> 143 | D6: =SUMIFS(SkillConfig!AH8:AH10002,SkillConfig!$A8:$A10002,"<>"&"",SkillConfig!$O8:$O10002,$B6) -> 133 | E6: =SUMIFS(SkillConfig!AI8:AI10002,SkillConfig!$A8:$A10002,"<>"&"",SkillConfig!$O8:$O10002,$B6) -> 133 | G6: =SUMIFS(SkillConfig!AJ8:AJ10002,SkillConfig!$A8:$A10002,"<>"&"",SkillConfig!$O8:$O10002,$B6) -> 10 | H6: =SUMIFS(SkillConfig!AK8:AK10002,SkillConfig!$A8:$A10002,"<>"&"",SkillConfig!$O8:$O10002,$B6) -> 5 | I6: =SUMIFS(SkillConfig!AL8:AL10002,SkillConfig!$A8:$A10002,"<>"&"",SkillConfig!$O8:$O10002,$B6) -> 10 | J6: =SUMIFS(SkillConfig!AM8:AM10002,SkillConfig!$A8:$A10002,"<>"&"",SkillConfig!$O8:$O10002,$B6) -> 10 | K6: =SUMIFS(SkillConfig!AN8:AN10002,SkillConfig!$A8:$A10002,"<>"&"",SkillConfig!$O8:$O10002,$B6) -> 5
A7: 4星 | B7: 5 | C7: =SUMIFS(SkillConfig!AG9:AG10003,SkillConfig!$A9:$A10003,"<>"&"",SkillConfig!$O9:$O10003,$B7) -> 209 | D7: =SUMIFS(SkillConfig!AH9:AH10003,SkillConfig!$A9:$A10003,"<>"&"",SkillConfig!$O9:$O10003,$B7) -> 184 | E7: =SUMIFS(SkillConfig!AI9:AI10003,SkillConfig!$A9:$A10003,"<>"&"",SkillConfig!$O9:$O10003,$B7) -> 189 | G7: =SUMIFS(SkillConfig!AJ9:AJ10003,SkillConfig!$A9:$A10003,"<>"&"",SkillConfig!$O9:$O10003,$B7) -> 10 | H7: =SUMIFS(SkillConfig!AK9:AK10003,SkillConfig!$A9:$A10003,"<>"&"",SkillConfig!$O9:$O10003,$B7) -> 10 | I7: =SUMIFS(SkillConfig!AL9:AL10003,SkillConfig!$A9:$A10003,"<>"&"",SkillConfig!$O9:$O10003,$B7) -> 20 | J7: =SUMIFS(SkillConfig!AM9:AM10003,SkillConfig!$A9:$A10003,"<>"&"",SkillConfig!$O9:$O10003,$B7) -> 20 | K7: =SUMIFS(SkillConfig!AN9:AN10003,SkillConfig!$A9:$A10003,"<>"&"",SkillConfig!$O9:$O10003,$B7) -> 10
A8: 5星 | B8: 6 | C8: =SUMIFS(SkillConfig!AG10:AG10004,SkillConfig!$A10:$A10004,"<>"&"",SkillConfig!$O10:$O10004,$B8) -> 229 | D8: =SUMIFS(SkillConfig!AH10:AH10004,SkillConfig!$A10:$A10004,"<>"&"",SkillConfig!$O10:$O10004,$B8) -> 204 | E8: =SUMIFS(SkillConfig!AI10:AI10004,SkillConfig!$A10:$A10004,"<>"&"",SkillConfig!$O10:$O10004,$B8) -> 209 | G8: =SUMIFS(SkillConfig!AJ10:AJ10004,SkillConfig!$A10:$A10004,"<>"&"",SkillConfig!$O10:$O10004,$B8) -> 10 | H8: =SUMIFS(SkillConfig!AK10:AK10004,SkillConfig!$A10:$A10004,"<>"&"",SkillConfig!$O10:$O10004,$B8) -> 10 | I8: =SUMIFS(SkillConfig!AL10:AL10004,SkillConfig!$A10:$A10004,"<>"&"",SkillConfig!$O10:$O10004,$B8) -> 20 | J8: =SUMIFS(SkillConfig!AM10:AM10004,SkillConfig!$A10:$A10004,"<>"&"",SkillConfig!$O10:$O10004,$B8) -> 20 | K8: =SUMIFS(SkillConfig!AN10:AN10004,SkillConfig!$A10:$A10004,"<>"&"",SkillConfig!$O10:$O10004,$B8) -> 10
